{"text_format":"1","workbook":"xlsx","n_sheets":12,"sheets":["Tracker","BCOES Request","Team Info","BCOES FY16 History","Projects Lookup","Data Record","Web Info","Backup","Project EX Input","Projects Typed","Project EX Input Sort","Spare"],"not_rendered":{"charts":0,"images":0,"macros":1,"external_links":0,"defined_names":21,"comments":2,"pivot_tables":0},"unopened":[],"bounds":{"document_bytes":16777216,"sheet_cells":100000,"rows_first":2000,"rows_last":500,"rows_between":2000,"halvings":0,"cell_chars":16384,"cell_head_chars":4096},"cells_cut":0,"cells_raw":0,"read":"whole","date_system":"1900"}

{"sheet":"Tracker","index":0,"n_rows":3,"n_cols":16,"rows_kept":3,"cut":false,"hidden":true,"merged":[]}
[null,"PROJECT","PROJET MANAGER","EXT","CHARGE CODE",null,"35% BCOE SUSPENSE"]
[null,null,null,null,null,"Coodinator","RE/PE",null,"Arch",null,"Civil",null,"Elec",null,"Mech"]
[null,null,null,null,null,null,"Comments Completed Date","Comments Closed Date","Comments Completed Date","Comments Closed Date","Comments Completed Date","Comments Closed Date","Comments Completed Date","Comments Closed Date","Comments Completed Date","Comments Closed Date"]

{"sheet":"BCOES Request","index":1,"n_rows":152,"n_cols":200,"rows_kept":152,"cut":false,"hidden":false,"merged":[[82,8,83,45],[85,8,86,45],[21,32,22,45],[28,2,29,14],[21,2,22,12],[43,1,43,46],[77,2,77,45],[79,2,79,6],[79,8,80,45],[32,31,33,40],[10,51,11,62],[1,1,1,46],[2,1,2,46],[6,2,7,12],[6,15,7,28],[11,2,12,19],[11,22,12,33],[11,36,12,45],[20,51,21,62],[15,51,16,62],[19,1,19,46],[16,2,17,11],[16,13,17,15],[16,18,17,30],[16,32,17,34],[36,2,37,45],[3,1,3,46],[9,1,9,46],[14,1,14,46],[25,1,25,46],[26,1,26,46],[16,37,17,45],[21,15,22,29],[28,37,28,45],[4,1,4,46],[24,1,24,46],[32,2,33,12],[32,18,33,21],[32,24,33,26]]}
[]
[null,"Construction Quality Manager Course Request"]
[]
[null,"PART I. PARTICIPANT INFORMATION :"]
[]
[null,"1. Last Name:",null,null,null,null,null,null,null,null,null,null,null,null,null,"First Name"]
[]
[]
[]
[]
[null,"2. Company:",null,null,null,null,null,null,null,null,null,null,null,null,null,null,null,null,null,null,null,"3. Title:",null,null,null,null,null,null,null,null,null,null,null,null,null,"4. Professional License:"]
[]
[]
[]
[]
[null,"5. Certified Previously:",null,null,null,null,null,null,null,null,null,null,null,null,null,null,null,"6. Currently QCM on another project:",null,null,null,null,null,null,null,null,null,null,null,null,null,null,null,null,null,null,"7. Site Safety Qualification:"]
[null,null,"         Yes; Date:",null,null,null,null,null,null,null,null,null,null,"        No",null,null,null,null,"       Yes; Date Complete:",null,null,null,null,null,null,null,null,null,null,null,null,null,"       No"]
[]
[]
[]
[null,"8. Years Experience as QC Manager:",null,null,null,null,null,null,null,null,null,null,null,null,"9. Other Relevent Positions/#Yrs:",null,null,null,null,null,null,null,null,null,null,null,null,null,null,null,null,"10. Email:"]
[]
[]
[]
[]
[null,"PART II. PROJECT INFORMATION:"]
[]
[null,"10. Project & Government POC",null,null,null,null,null,null,null,null,null,null,null,null,null,null,"11. Session:",null,null,null,null,null,null,null,null,null,null,null,null,null,null,null,null,null,"12. Date of Request:"]
[null,null,null,null,null,null,null,null,null,null,null,null,null,null,null,null,null,null,"1 Fort Liberty",null,null,null,null,null,null,"2 Fort Eisenhower"]
[null,null,null,null,null,null,null,null,null,null,null,null,null,null,null,null,null,null,"3 Fort Moore",null,null,null,null,null,null,"4 Robins AFB",null,null,null,null,null,null,null,null,null,null,null,null,"(date form is completed)"]
[]
[null,"13. Years on Similar Project:",null,null,null,null,null,null,null,null,null,null,null,null,null,"14. Attendance:",null,null,null,null,null,null,null,null,null,null,null,null,null,"15. Accomodations:"]
[null,null,null,null,null,null,null,null,null,null,null,null,null,null,null,null,null,null,"In Person",null,null,null,null,null,"*Virtual"]
[]
[]
[null,null,null,null,"*  May not be available"]
[null,null,"All Applicants must be approved to take the course, by meeting or exceeding the qualifications set within UFGS 01 45 00. USACE SAS reserves the right to reject or approve applicats based on the provided information and/or the testimony of USACE staff. "]
[]
[]
[null,null,null,"Hover over blanks for notes to applicant"]
[null,null,null,"Submit applications in excel format"]
[]
[]
[]
[]
[]
[]
[]
[]
[]
[]
[]
[]
[]
[]
[null,null,null,null,null,null,null,null,null,null,null,null,null,null,null,null,null,null,null,null,null,null,null,null,null,null,null,null,null,null,null,null,null,null,null,null,null,null,null,null,null,null,null,null,null,null,null,null,null,null,null,null,null,null,null,null,"Column1","Amy Vaughn"]
[null,null,null,null,null,null,null,null,null,null,null,null,null,null,null,null,null,null,null,null,null,null,null,null,null,null,null,null,null,null,null,null,null,null,null,null,null,null,null,null,null,null,null,null,null,null,null,null,null,null,null,null,null,null,null,null,"Moody_AFB","Eddie Culpepper",null,{"$f":"\"A \"&AB33&\" BCOES review has been requested for the \"&J12&\", \"&\"PN \"&AG12&\".\"","v":"A  BCOES review has been requested for the , PN ."}]
[null,null,null,null,null,null,null,null,null,null,null,null,null,null,null,null,null,null,null,null,null,null,null,null,null,null,null,null,null,null,null,null,null,null,null,null,null,null,null,null,null,null,null,null,null,null,null,null,null,null,null,null,null,null,null,null,"Fort_Bragg","Marcia Meekins",null,{"$f":"\"Request Date: \"&AP29","v":"Request Date: "}]
[null,null,null,null,null,null,null,null,null,null,null,null,null,null,null,null,null,null,null,null,null,null,null,null,null,null,null,null,null,null,null,null,null,null,null,null,null,null,null,null,null,null,null,null,null,null,null,null,null,null,null,null,null,null,null,null,"Fort_Benning","Eddie Culpepper"]
[null,null,null,null,null,null,null,null,null,null,null,null,null,null,null,null,null,null,null,null,null,null,null,null,null,null,null,null,null,null,null,null,null,null,null,null,null,null,null,null,null,null,null,null,null,null,null,null,null,null,null,null,null,null,null,null,"Fort_Bragg","Marcia Meekins"]
[null,null,null,null,null,null,null,null,null,null,null,null,null,null,null,null,null,null,null,null,null,null,null,null,null,null,null,null,null,null,null,null,null,null,null,null,null,null,null,null,null,null,null,null,null,null,null,null,null,null,null,null,null,null,null,null,"Robins_AFB","Richard Thomas",null,{"$f":"\"Suspense Date: \"&#REF!","v":{"$error":"#REF!"}}]
[null,null,null,null,null,null,null,null,null,null,null,null,null,null,null,null,null,null,null,null,null,null,null,null,null,null,null,null,null,null,null,null,null,null,null,null,null,null,null,null,null,null,null,null,null,null,null,null,null,null,null,null,null,null,null,null,"Fort_Gordon","Stephen Monjoy",null,{"$f":"\"Duration: \"&AJ33&\" Calendar Days\"","v":"Duration:  Calendar Days"}]
[null,null,null,null,null,null,null,null,null,null,null,null,null,null,null,null,null,null,null,null,null,null,null,null,null,null,null,null,null,null,null,null,null,null,null,null,null,null,null,null,null,null,null,null,null,null,null,null,null,null,null,null,null,null,null,null,"Fort_Stewart","Karl VanStavorenn",null,{"$f":"\"PM POC: \"&B33","v":"PM POC: "}]
[null,null,null,null,null,null,null,null,null,null,null,null,null,null,null,null,null,null,null,null,null,null,null,null,null,null,null,null,null,null,null,null,null,null,null,null,null,null,null,null,null,null,null,null,null,null,null,null,null,null,null,null,null,null,null,null,"Seymour_Johnson_AFB","Richard Thomas",null,{"$f":"\"BCOES Coordinator: Rich Sillin x5094\"","v":"BCOES Coordinator: Rich Sillin x5094"}]
[null,null,null,null,null,null,null,null,null,null,null,null,null,null,null,null,null,null,null,null,null,null,null,null,null,null,null,null,null,null,null,null,null,null,null,null,null,null,null,null,null,null,null,null,null,null,null,null,null,null,null,null,null,null,null,null,"Hunter_AAF","Todd McGalliard",null,{"$f":"\"Contract Type: \"&(IF(#REF!=TRUE,S38,IF(#REF!=TRUE,S41,(IF(#REF!=TRUE,#REF!,IF(#REF!=TRUE,S47,(IF(#REF!=TRUE,S50,\"Contact \"&B33&\" for plan and specification location information.\"))))))))","v":{"$error":"#REF!"}}]
[null,null,null,null,null,null,null,null,null,null,null,null,null,null,null,null,null,null,null,null,null,null,null,null,null,null,null,null,null,null,null,null,null,null,null,null,null,null,null,null,null,null,null,null,null,null,null,null,null,null,null,null,null,null,null,null,"Fort_Gillem","Philip Payne",null,{"$f":"\"Contract Location: \"&(IF(#REF!=TRUE,D38,IF(#REF!=TRUE,D41,(IF(#REF!=TRUE,#REF!,IF(#REF!=TRUE,D47,\"Contact \"&B33&\" for plan and specification location information.\"))))))","v":{"$error":"#REF!"}}]
[null,null,null,null,null,null,null,null,null,null,null,null,null,null,null,null,null,null,null,null,null,null,null,null,null,null,null,null,null,null,null,null,null,null,null,null,null,null,null,null,null,null,null,null,null,null,null,null,null,null,null,null,null,null,null,null,"Camp_Merrill"]
[]
[null,null,null,null,null,null,null,null,null,null,null,null,null,null,null,null,null,null,null,null,null,null,null,null,null,null,null,null,null,null,null,null,null,null,null,null,null,null,null,null,null,null,null,null,null,null,null,null,null,null,null,null,null,null,null,null,null,"Troy Funk"]
[null,null,null,null,null,null,null,null,null,null,null,null,null,null,null,null,null,null,null,null,null,null,null,null,null,null,null,null,null,null,null,null,null,null,null,null,null,null,null,null,null,null,null,null,null,null,null,null,null,null,null,null,null,null,null,null,null,"Stephen Monjoy"]
[null,null,null,null,null,null,null,null,null,null,null,null,null,null,null,null,null,null,null,null,null,null,null,null,null,null,null,null,null,null,null,null,null,null,null,null,null,null,null,null,null,null,null,null,null,null,null,null,null,null,null,null,null,null,null,null,null,null,"Troy Funk"]
[]
[]
[]
[null,null,null,null,null,null,null,null,null,null,null,null,null,null,null,null,null,null,null,null,null,null,null,null,null,null,null,null,null,null,null,null,null,null,null,null,null,null,null,null,null,null,null,null,null,null,null,null,null,null,null,null,null,null,null,null,{"$f":"IFERROR(VLOOKUP((VLOOKUP(J12,'Projects Lookup'!B2:E87,3,FALSE)),'Team Info'!AE3:AI19,3,FALSE),0)","v":0},null,null,null,null,null,null,null,null,null,null,null,null,null,null,null,null,null,null,null,null,null,null,null,null,null,null,null,null,null,null,null,null,null,null,null,null,null,null,null,null,null,null,null,null,null,null,null,"BCOES Fee Rates FY17"]
[null,null,null,null,null,null,null,null,null,null,null,null,null,null,null,null,null,null,null,null,null,null,null,null,null,null,null,null,null,null,null,null,null,null,null,null,null,null,null,null,null,null,null,null,null,null,null,null,null,null,null,null,null,null,null,null,{"$f":"VLOOKUP(H76,'Team Info'!A4:F14,2)","v":{"$error":"#N/A"}}]
[null,null,null,null,null,null,null,null,null,null,null,null,null,null,null,null,null,null,null,null,null,null,null,null,null,null,null,null,null,null,null,null,null,null,null,null,null,null,null,null,null,null,null,null,null,null,null,null,null,null,null,null,null,null,null,null,{"$f":"VLOOKUP(H77,'Team Info'!$M$4:$R$11,2)","v":{"$error":"#N/A"}},null,null,null,null,null,null,null,null,null,null,null,null,null,null,null,null,null,null,null,null,null,null,null,null,null,null,null,null,null,null,null,null,null,null,null,null,null,null,null,null,null,null,null,null,null,null,null,"Less than 75 pages","76 - 150","151 - 225 ","226 -300","301 - 375","More than 375 pages"]
[null,null,null,null,null,null,null,null,null,null,null,null,null,null,null,null,null,null,null,null,null,null,null,null,null,null,null,null,null,null,null,null,null,null,null,null,null,null,null,null,null,null,null,null,null,null,null,null,null,null,null,null,null,null,null,null,{"$f":"VLOOKUP(H78,'Team Info'!$M$4:$R$11,2)","v":{"$error":"#N/A"}},null,null,null,null,null,null,null,null,null,null,null,null,null,null,null,null,null,null,null,null,null,null,null,null,null,null,null,null,null,null,null,null,null,null,null,null,null,null,null,null,null,null,null,null,null,null,0.35,{"$f":"#REF!*#REF!+#REF!*#REF!+#REF!*#REF!+#REF!*#REF!+#REF!*#REF!+#REF!*#REF!+$AF$80*#REF!","v":{"$error":"#REF!"}},{"$f":"#REF!*#REF!+#REF!*#REF!+#REF!*#REF!+#REF!*#REF!+#REF!*#REF!+#REF!*#REF!+$AF$80*#REF!","v":{"$error":"#REF!"}},{"$f":"#REF!*#REF!+#REF!*#REF!+#REF!*#REF!+#REF!*#REF!+#REF!*#REF!+#REF!*#REF!+$AF$80*#REF!","v":{"$error":"#REF!"}},{"$f":"#REF!*#REF!+#REF!*#REF!+#REF!*#REF!+#REF!*#REF!+#REF!*#REF!+#REF!*#REF!+$AF$80*#REF!","v":{"$error":"#REF!"}},{"$f":"#REF!*#REF!+#REF!*#REF!+#REF!*#REF!+#REF!*#REF!+#REF!*#REF!+#REF!*#REF!+$AF$80*#REF!","v":{"$error":"#REF!"}},{"$f":"#REF!*#REF!+#REF!*#REF!+#REF!*#REF!+#REF!*#REF!+#REF!*#REF!+#REF!*#REF!+$AF$80*#REF!","v":{"$error":"#REF!"}}]
[null,null,null,null,null,null,null,null,null,null,null,null,null,null,null,null,null,null,null,null,null,null,null,null,null,null,null,null,null,null,null,null,null,null,null,null,null,null,null,null,null,null,null,null,null,null,null,null,null,null,null,null,null,null,null,null,{"$f":"VLOOKUP(H79,'Team Info'!$M$4:$R$11,2)","v":{"$error":"#N/A"}},null,null,null,null,null,null,null,null,null,null,null,null,null,null,null,null,null,null,null,null,null,null,null,null,null,null,null,null,null,null,null,null,null,null,null,null,null,null,null,null,null,null,null,null,null,null,0.65,{"$f":"#REF!*#REF!+#REF!*#REF!+#REF!*#REF!+#REF!*#REF!+#REF!*#REF!+#REF!*#REF!+$AF$80*#REF!","v":{"$error":"#REF!"}},{"$f":"#REF!*#REF!+#REF!*#REF!+#REF!*#REF!+#REF!*#REF!+#REF!*#REF!+#REF!*#REF!+$AF$80*#REF!","v":{"$error":"#REF!"}},{"$f":"#REF!*#REF!+#REF!*#REF!+#REF!*#REF!+#REF!*#REF!+#REF!*#REF!+#REF!*#REF!+$AF$80*#REF!","v":{"$error":"#REF!"}},{"$f":"#REF!*#REF!+#REF!*#REF!+#REF!*#REF!+#REF!*#REF!+#REF!*#REF!+#REF!*#REF!+$AF$80*#REF!","v":{"$error":"#REF!"}},{"$f":"#REF!*#REF!+#REF!*#REF!+#REF!*#REF!+#REF!*#REF!+#REF!*#REF!+#REF!*#REF!+$AF$80*#REF!","v":{"$error":"#REF!"}},{"$f":"#REF!*#REF!+#REF!*#REF!+#REF!*#REF!+#REF!*#REF!+#REF!*#REF!+#REF!*#REF!+$AF$80*#REF!","v":{"$error":"#REF!"}}]
[null,null,null,null,null,null,null,null,null,null,null,null,null,null,null,null,null,null,null,null,null,null,null,null,null,null,null,null,null,null,null,null,null,null,null,null,null,null,null,null,null,null,null,null,null,null,null,null,null,null,null,null,null,null,null,null,{"$f":"VLOOKUP(H80,'Team Info'!$M$4:$R$11,2)","v":{"$error":"#N/A"}},null,null,null,null,null,null,null,null,null,null,null,null,null,null,null,null,null,null,null,null,null,null,null,null,null,null,null,null,null,null,null,null,null,null,null,null,null,null,null,null,null,null,null,null,null,null,0.95,{"$f":"#REF!*#REF!+#REF!*#REF!+#REF!*#REF!+#REF!*#REF!+#REF!*#REF!+#REF!*#REF!+$AF$80*#REF!","v":{"$error":"#REF!"}},{"$f":"#REF!*#REF!+#REF!*#REF!+#REF!*#REF!+#REF!*#REF!+#REF!*#REF!+#REF!*#REF!+$AF$80*#REF!","v":{"$error":"#REF!"}},{"$f":"#REF!*#REF!+#REF!*#REF!+#REF!*#REF!+#REF!*#REF!+#REF!*#REF!+#REF!*#REF!+$AF$80*#REF!","v":{"$error":"#REF!"}},{"$f":"#REF!*#REF!+#REF!*#REF!+#REF!*#REF!+#REF!*#REF!+#REF!*#REF!+#REF!*#REF!+$AF$80*#REF!","v":{"$error":"#REF!"}},{"$f":"#REF!*#REF!+#REF!*#REF!+#REF!*#REF!+#REF!*#REF!+#REF!*#REF!+#REF!*#REF!+$AF$80*#REF!","v":{"$error":"#REF!"}},{"$f":"#REF!*#REF!+#REF!*#REF!+#REF!*#REF!+#REF!*#REF!+#REF!*#REF!+#REF!*#REF!+$AF$80*#REF!","v":{"$error":"#REF!"}}]
[null,null,null,null,null,null,null,null,null,null,null,null,null,null,null,null,null,null,null,null,null,null,null,null,null,null,null,null,null,null,null,null,null,null,null,null,null,null,null,null,null,null,null,null,null,null,null,null,null,null,null,null,null,null,null,null,null,null,null,null,null,null,null,null,null,null,null,null,null,null,null,null,null,null,null,null,null,null,null,null,null,null,null,null,null,null,null,null,null,null,null,null,null,null,null,null,null,null,null,null,null,null,null,1,{"$f":"#REF!*#REF!+#REF!*#REF!+#REF!*#REF!+#REF!*#REF!+#REF!*#REF!+#REF!*#REF!+$AF$80*#REF!","v":{"$error":"#REF!"}},{"$f":"#REF!*#REF!+#REF!*#REF!+#REF!*#REF!+#REF!*#REF!+#REF!*#REF!+#REF!*#REF!+$AF$80*#REF!","v":{"$error":"#REF!"}},{"$f":"#REF!*#REF!+#REF!*#REF!+#REF!*#REF!+#REF!*#REF!+#REF!*#REF!+#REF!*#REF!+$AF$80*#REF!","v":{"$error":"#REF!"}},{"$f":"#REF!*#REF!+#REF!*#REF!+#REF!*#REF!+#REF!*#REF!+#REF!*#REF!+#REF!*#REF!+$AF$80*#REF!","v":{"$error":"#REF!"}},{"$f":"#REF!*#REF!+#REF!*#REF!+#REF!*#REF!+#REF!*#REF!+#REF!*#REF!+#REF!*#REF!+$AF$80*#REF!","v":{"$error":"#REF!"}},{"$f":"#REF!*#REF!+#REF!*#REF!+#REF!*#REF!+#REF!*#REF!+#REF!*#REF!+#REF!*#REF!+$AF$80*#REF!","v":{"$error":"#REF!"}}]
[null,null,null,null,null,null,null,null,null,null,null,null,null,null,null,null,null,null,null,null,null,null,null,null,null,null,null,null,null,null,null,null,null,null,null,null,null,null,null,null,null,null,null,null,null,null,null,null,null,null,null,null,null,null,null,null,null,null,null,null,null,null,null,null,null,null,null,null,null,null,null,null,null,null,null,null,null,null,null,null,null,null,null,null,null,null,null,null,null,null,null,null,null,null,null,null,null,null,null,null,null,null,null,"Total*",{"$f":"SUM(DA78:DA81)","v":{"$error":"#REF!"}},{"$error":"#REF!"},{"$error":"#REF!"},{"$error":"#REF!"},{"$error":"#REF!"},{"$error":"#REF!"}]
[]
[]
[]
[]
[null,null,null,null,null,null,null,null,null,null,null,null,null,null,null,null,null,null,null,null,null,null,null,null,null,null,null,null,null,null,null,null,null,null,null,null,null,null,null,null,null,null,null,null,null,null,null,null,null,null,null,null,null,null,null,null,null,null,"Private Sub CommandButton22_Click()",null,null,null,null,null,null,null,null,null,null,null,null,null,null,null,null,null,null,null,null,null,null,null,null,null,null,null,null,null,null,null,null,null,null,null,null,null,null,null,null,null,null,null,null,"Resubmit",{"$f":"#REF!*#REF!+#REF!*#REF!+#REF!*#REF!+#REF!*#REF!+#REF!*#REF!+#REF!*#REF!+$AF$80*#REF!","v":{"$error":"#REF!"}},{"$f":"#REF!*#REF!+#REF!*#REF!+#REF!*#REF!+#REF!*#REF!+#REF!*#REF!+#REF!*#REF!+$AF$80*#REF!","v":{"$error":"#REF!"}},{"$f":"#REF!*#REF!+#REF!*#REF!+#REF!*#REF!+#REF!*#REF!+#REF!*#REF!+#REF!*#REF!+$AF$80*#REF!","v":{"$error":"#REF!"}},{"$f":"#REF!*#REF!+#REF!*#REF!+#REF!*#REF!+#REF!*#REF!+#REF!*#REF!+#REF!*#REF!+$AF$80*#REF!","v":{"$error":"#REF!"}},{"$f":"#REF!*#REF!+#REF!*#REF!+#REF!*#REF!+#REF!*#REF!+#REF!*#REF!+#REF!*#REF!+$AF$80*#REF!","v":{"$error":"#REF!"}},{"$f":"#REF!*#REF!+#REF!*#REF!+#REF!*#REF!+#REF!*#REF!+#REF!*#REF!+#REF!*#REF!+$AF$80*#REF!","v":{"$error":"#REF!"}}]
[null,null,null,null,null,null,null,null,null,null,null,null,null,null,null,null,null,null,null,null,null,null,null,null,null,null,null,null,null,null,null,null,null,null,null,null,null,null,null,null,null,null,null,null,null,null,null,null,null,null,null,null,null,null,null,null,null,null,"Sub Send_Range_Or_Whole_Worksheet_with_MailEnvelope()"]
[null,null,null,null,null,null,null,null,null,null,null,null,null,null,null,null,null,null,null,null,null,null,null,null,null,null,null,null,null,null,null,null,null,null,null,null,null,null,null,null,null,null,null,null,null,null,null,null,null,null,null,null,null,null,null,null,null,null,".Attachments.Add Environ(\"UserProfile\") & \"C:\\Users\\K6CDBRSS\\Documents\\1. QA Section\\10. BCOES\\VBA TESTS\\2016 BCOES Analysis.xlsx\"",null,null,null,null,null,null,null,null,null,null,null,null,null,null,null,null,null,null,null,null,null,null,null,null,null,null,null,null,null,null,null,null,null,null,null,null,null,null,null,null,null,null,null,null,null,"BCOES FY Comparison"]
[null,null,null,null,null,null,null,null,null,null,null,null,null,null,null,null,null,null,null,null,null,null,null,null,null,null,null,null,null,null,null,null,null,null,null,null,null,null,null,null,null,null,null,null,null,null,null,null,null,null,null,null,null,null,null,null,null,null,null,null,null,"CD BCOES Review","CD","K6M1000"]
[null,null,null,null,null,null,null,null,null,null,null,null,null,null,null,null,null,null,null,null,null,null,null,null,null,null,null,null,null,null,null,null,null,null,null,null,null,null,null,null,null,null,null,null,null,null,null,null,null,null,null,null,null,null,null,null,null,null,null,null,null,"QUALITY ASSURANCE SECTION","CDQ-A","K6M1WA0"]
[null,null,null,null,null,null,null,null,null,null,null,null,null,null,null,null,null,null,null,null,null,null,null,null,null,null,null,null,null,null,null,null,null,null,null,null,null,null,null,null,null,null,null,null,null,null,null,null,null,null,null,null,null,null,null,null,null,null,null,null,null,"Ft BENNING AREA OFICE","CDB","K6M1D00"]
[null,null,null,null,null,null,null,null,null,null,null,null,null,null,null,null,null,null,null,null,null,null,null,null,null,null,null,null,null,null,null,null,null,null,null,null,null,null,null,null,null,null,null,null,null,null,null,null,null,null,null,null,null,null,null,null,null,null,null,null,null,"FT BENNING EAST RES OFFICE","CDB-E","K6M1DE0"]
[null,null,null,null,null,null,null,null,null,null,null,null,null,null,null,null,null,null,null,null,null,null,null,null,null,null,null,null,null,null,null,null,null,null,null,null,null,null,null,null,null,null,null,null,null,null,null,null,null,null,null,null,null,null,null,null,null,null,null,null,null,"FT BENNING WEST RES OFFICE","CDB-W","K6M1DF0"]
[null,null,null,null,null,null,null,null,null,null,null,null,null,null,null,null,null,null,null,null,null,null,null,null,null,null,null,null,null,null,null,null,null,null,null,null,null,null,null,null,null,null,null,null,null,null,null,null,null,null,null,null,null,null,null,null,null,null,null,null,null,"NORTH CAROLINA AREA OFFICE","CDN","K6M1J00"]
[null,null,null,null,null,null,null,null,null,null,null,null,null,null,null,null,null,null,null,null,null,null,null,null,null,null,null,null,null,null,null,null,null,null,null,null,null,null,null,null,null,null,null,null,null,null,null,null,null,null,null,null,null,null,null,null,null,null,null,null,null,"FT BRAGG RESIDENT OFFICE","CDN-R","K6M1JD0"]
[null,null,null,null,null,null,null,null,null,null,null,null,null,null,null,null,null,null,null,null,null,null,null,null,null,null,null,null,null,null,null,null,null,null,null,null,null,null,null,null,null,null,null,null,null,null,null,null,null,null,null,null,null,null,null,null,null,null,null,null,null,"FT BRAGG BARRACKS RED OFFICE","CDN-B","K6M1JA0"]
[null,null,null,null,null,null,null,null,null,null,null,null,null,null,null,null,null,null,null,null,null,null,null,null,null,null,null,null,null,null,null,null,null,null,null,null,null,null,null,null,null,null,null,null,null,null,null,null,null,null,null,null,null,null,null,null,null,null,null,null,null,"SEYMOUR JOHNSON RES OFFICE","CDN-S","K6M1JE0"]
[null,null,null,null,null,null,null,null,null,null,null,null,null,null,null,null,null,null,null,null,null,null,null,null,null,null,null,null,null,null,null,null,null,null,null,null,null,null,null,null,null,null,null,null,null,null,null,null,null,null,null,null,null,null,null,null,null,null,null,null,null,"FT GORDON AREA OFFICE","CDG","K6M1A00"]
[null,null,null,null,null,null,null,null,null,null,null,null,null,null,null,null,null,null,null,null,null,null,null,null,null,null,null,null,null,null,null,null,null,null,null,null,null,null,null,null,null,null,null,null,null,null,null,null,null,null,null,null,null,null,null,null,null,null,null,null,null,"CSS GEORGIA RESIDENT OFFICE","CDG-C","K6M1AC0"]
[null,null,null,null,null,null,null,null,null,null,null,null,null,null,null,null,null,null,null,null,null,null,null,null,null,null,null,null,null,null,null,null,null,null,null,null,null,null,null,null,null,null,null,null,null,null,null,null,null,null,null,null,null,null,null,null,null,null,null,null,null,"FT GORDON RESIDENT OFFICE","CDG-G","K6M1AB0"]
[null,null,null,null,null,null,null,null,null,null,null,null,null,null,null,null,null,null,null,null,null,null,null,null,null,null,null,null,null,null,null,null,null,null,null,null,null,null,null,null,null,null,null,null,null,null,null,null,null,null,null,null,null,null,null,null,null,null,null,null,null,"ROBINS AFB AREA OFFICE","CDW","K6M1F00"]
[null,null,null,null,null,null,null,null,null,null,null,null,null,null,null,null,null,null,null,null,null,null,null,null,null,null,null,null,null,null,null,null,null,null,null,null,null,null,null,null,null,null,null,null,null,null,null,null,null,null,null,null,null,null,null,null,null,null,null,null,null,"ROBINS AFB RESIDENT OFFICE","CDW-R","K6M1FC0"]
[null,null,null,null,null,null,null,null,null,null,null,null,null,null,null,null,null,null,null,null,null,null,null,null,null,null,null,null,null,null,null,null,null,null,null,null,null,null,null,null,null,null,null,null,null,null,null,null,null,null,null,null,null,null,null,null,null,null,null,null,null,"ATLANTA RESIDENT OFFICE","CDW-A","K6M1FA0"]
[null,null,null,null,null,null,null,null,null,null,null,null,null,null,null,null,null,null,null,null,null,null,null,null,null,null,null,null,null,null,null,null,null,null,null,null,null,null,null,null,null,null,null,null,null,null,null,null,null,null,null,null,null,null,null,null,null,null,null,null,null,"MOODY AFB RESIDENT OFFICE","CDW-M","K6M1FB0"]
[null,null,null,null,null,null,null,null,null,null,null,null,null,null,null,null,null,null,null,null,null,null,null,null,null,null,null,null,null,null,null,null,null,null,null,null,null,null,null,null,null,null,null,null,null,null,null,null,null,null,null,null,null,null,null,null,null,null,null,null,null,"FT STEWART AREA OFFICE","CDS","K6M1N00"]
[null,null,null,null,null,null,null,null,null,null,null,null,null,null,null,null,null,null,null,null,null,null,null,null,null,null,null,null,null,null,null,null,null,null,null,null,null,null,null,null,null,null,null,null,null,null,null,null,null,null,null,null,null,null,null,null,null,null,null,null,null,"HUNTER AAF RESIDENT OFFICE","CDS-H","K6M1NA0"]
[null,null,null,null,null,null,null,null,null,null,null,null,null,null,null,null,null,null,null,null,null,null,null,null,null,null,null,null,null,null,null,null,null,null,null,null,null,null,null,null,null,null,null,null,null,null,null,null,null,null,null,null,null,null,null,null,null,null,null,null,null,"FT STEWART RESIDENT OFFICE","CDS-S","K6M1NB0"]
[]
[]
[]
[]
[]
[]
[]
[]
[]
[]
[]
[]
[]
[]
[]
[]
[]
[null,null,null,null,null,null,null,null,null,null,null,null,null,null,null,null,null,null,null,null,null,null,null,null,null,null,null,null,null,null,null,null,null,null,null,null,null,null,null,null,null,null,null,null,null,null,null,null,null,null,null,null,null,null,null,null,null,null,null,null,null,null,null,null,null,null,null,null,null,null,null,null,null,null,null,null,null,null,null,null,null,null,null,null,null,null,null,null,null,null,null,null,null,null,null,null,null,null,null,null,null,null,null,null,null,null,null,null,null,null,null,null,null,null,null,null,null,null,null,null,null,null,null,null,null,null,null,null,null,null,null,null,null,null,null,null,null,null,null,null,null,null,null,null,null,null,null,null,null,null,null,null,null,null,null,null,null,null,null,null,null,null,null,null,null,null,null,null,null,null,null,null,null,null,null,null,null,null,null,null,null,null,null,null,null,null,null,null,null,null,null,null,null,null,null,null,"SMALL PROJECT (65% review under 100 Plan Pages, PA usually under $15M)"]
[]
[null,null,null,null,null,null,null,null,null,null,null,null,null,null,null,null,null,null,null,null,null,null,null,null,null,null,null,null,null,null,null,null,null,null,null,null,null,null,null,null,null,null,null,null,null,null,null,null,null,null,null,null,null,null,null,null,null,null,null,null,null,null,null,null,null,null,null,null,null,null,null,null,null,null,null,null,null,null,null,null,null,null,null,null,null,null,null,null,null,null,null,null,null,null,null,null,null,null,null,null,null,null,null,null,null,null,null,null,null,null,null,null,null,null,null,null,null,null,null,null,null,null,null,null,null,null,null,null,null,null,null,null,null,null,null,null,null,null,null,null,null,null,null,null,null,null,null,null,null,null,null,null,null,null,null,null,null,null,null,null,null,null,null,null,null,null,null,null,null,null,null,null,null,null,null,null,null,null,null,null,null,null,null,null,null,null,null,null,null,null,null,null,6000,null,null,"Field Office",2000,4000,"2000 plus $20 for each additional page added since 65% review",1000]
[null,null,null,null,null,null,null,null,null,null,null,null,null,null,null,null,null,null,null,null,null,null,null,null,null,null,null,null,null,null,null,null,null,null,null,null,null,null,null,null,null,null,null,null,null,null,null,null,null,null,null,null,null,null,null,null,null,null,null,null,null,null,null,null,null,null,null,null,null,null,null,null,null,null,null,null,null,null,null,null,null,null,null,null,null,null,null,null,null,null,null,null,null,null,null,null,null,null,null,null,null,null,null,null,null,null,null,null,null,null,null,null,null,null,null,null,null,null,null,null,null,null,null,null,null,null,null,null,null,null,null,null,null,null,null,null,null,null,null,null,null,null,null,null,null,null,null,null,null,null,null,null,null,null,null,null,null,null,null,null,null,null,null,null,null,null,null,null,null,null,null,null,null,null,null,null,null,null,null,null,null,null,null,null,null,null,null,null,null,null,null,null,5500,null,null,"Mechanical ",1000,2500,"1000 plus $10 for each additional page added since 65% review",1000]
[null,null,null,null,null,null,null,null,null,null,null,null,null,null,null,null,null,null,null,null,null,null,null,null,null,null,null,null,null,null,null,null,null,null,null,null,null,null,null,null,null,null,null,null,null,null,null,null,null,null,null,null,null,null,null,null,null,null,null,null,null,null,null,null,null,null,null,null,null,null,null,null,null,null,null,null,null,null,null,null,null,null,null,null,null,null,null,null,null,null,null,null,null,null,null,null,null,null,null,null,null,null,null,null,null,null,null,null,null,null,null,null,null,null,null,null,null,null,null,null,null,null,null,null,null,null,null,null,null,null,null,null,null,null,null,null,null,null,null,null,null,null,null,null,null,null,null,null,null,null,null,null,null,null,null,null,null,null,null,null,null,null,null,null,null,null,null,null,null,null,null,null,null,null,null,null,null,null,null,null,null,null,null,null,null,null,null,null,null,null,null,null,4000,null,null,"Electrical",1000,2500,"1000 plus $10 for each additional page added since 65% review",500]
[null,null,null,null,null,null,null,null,null,null,null,null,null,null,null,null,null,null,null,null,null,null,null,null,null,null,null,null,null,null,null,null,null,null,null,null,null,null,null,null,null,null,null,null,null,null,null,null,null,null,null,null,null,null,null,null,null,null,null,null,null,null,null,null,null,null,null,null,null,null,null,null,null,null,null,null,null,null,null,null,null,null,null,null,null,null,null,null,null,null,null,null,null,null,null,null,null,null,null,null,null,null,null,null,null,null,null,null,null,null,null,null,null,null,null,null,null,null,null,null,null,null,null,null,null,null,null,null,null,null,null,null,null,null,null,null,null,null,null,null,null,null,null,null,null,null,null,null,null,null,null,null,null,null,null,null,null,null,null,null,null,null,null,null,null,null,null,null,null,null,null,null,null,null,null,null,null,null,null,null,null,null,null,null,null,null,null,null,null,null,null,null,null,null,null,"Civil",1000,1500,"2000 plus $20 for each additional page added since 65% review",250]
[null,null,null,null,null,null,null,null,null,null,null,null,null,null,null,null,null,null,null,null,null,null,null,null,null,null,null,null,null,null,null,null,null,null,null,null,null,null,null,null,null,null,null,null,null,null,null,null,null,null,null,null,null,null,null,null,null,null,null,null,null,null,null,null,null,null,null,null,null,null,null,null,null,null,null,null,null,null,null,null,null,null,null,null,null,null,null,null,null,null,null,null,null,null,null,null,null,null,null,null,null,null,null,null,null,null,null,null,null,null,null,null,null,null,null,null,null,null,null,null,null,null,null,null,null,null,null,null,null,null,null,null,null,null,null,null,null,null,null,null,null,null,null,null,null,null,null,null,null,null,null,null,null,null,null,null,null,null,null,null,null,null,null,null,null,null,null,null,null,null,null,null,null,null,null,null,null,null,null,null,null,null,null,null,null,null,null,null,null,null,null,null,null,null,null,"Total",{"$f":"SUM(GO128:GO131)","v":5000},{"$f":"SUM(GP128:GP131)","v":10500},"5000 plus",{"$f":"SUM(GR128:GR131)","v":2750}]
[]
[null,null,null,null,null,null,null,null,null,null,null,null,null,null,null,null,null,null,null,null,null,null,null,null,null,null,null,null,null,null,null,null,null,null,null,null,null,null,null,null,null,null,null,null,null,null,null,null,null,null,null,null,null,null,null,null,null,null,null,null,null,null,null,null,null,null,null,null,null,null,null,null,null,null,null,null,null,null,null,null,null,null,null,null,null,null,null,null,null,null,null,null,null,null,null,null,null,null,null,null,null,null,null,null,null,null,null,null,null,null,null,null,null,null,null,null,null,null,null,null,null,null,null,null,null,null,null,null,null,null,null,null,null,null,null,null,null,null,null,null,null,null,null,null,null,null,null,null,null,null,null,null,null,null,null,null,null,null,null,null,null,null,null,null,null,null,null,null,null,null,null,null,null,null,null,null,null,null,null,null,null,null,null,null,null,null,null,null,null,null,null,null,null,null,null,null,"Large Project (100 to 250 Plan Pages, PA between $15m and $35M)"]
[]
[null,null,null,null,null,null,null,null,null,null,null,null,null,null,null,null,null,null,null,null,null,null,null,null,null,null,null,null,null,null,null,null,null,null,null,null,null,null,null,null,null,null,null,null,null,null,null,null,null,null,null,null,null,null,null,null,null,null,null,null,null,null,null,null,null,null,null,null,null,null,null,null,null,null,null,null,null,null,null,null,null,null,null,null,null,null,null,null,null,null,null,null,null,null,null,null,null,null,null,null,null,null,null,null,null,null,null,null,null,null,null,null,null,null,null,null,null,null,null,null,null,null,null,null,null,null,null,null,null,null,null,null,null,null,null,null,null,null,null,null,null,null,null,null,null,null,null,null,null,null,null,null,null,null,null,null,null,null,null,null,null,null,null,null,null,null,null,null,null,null,null,null,null,null,null,null,null,null,null,null,null,null,null,null,null,null,null,null,null,null,null,null,null,null,null,null,"35% Plans","65% Plans","100% Plans","Final Review"]
[null,null,null,null,null,null,null,null,null,null,null,null,null,null,null,null,null,null,null,null,null,null,null,null,null,null,null,null,null,null,null,null,null,null,null,null,null,null,null,null,null,null,null,null,null,null,null,null,null,null,null,null,null,null,null,null,null,null,null,null,null,null,null,null,null,null,null,null,null,null,null,null,null,null,null,null,null,null,null,null,null,null,null,null,null,null,null,null,null,null,null,null,null,null,null,null,null,null,null,null,null,null,null,null,null,null,null,null,null,null,null,null,null,null,null,null,null,null,null,null,null,null,null,null,null,null,null,null,null,null,null,null,null,null,null,null,null,null,null,null,null,null,null,null,null,null,null,null,null,null,null,null,null,null,null,null,null,null,null,null,null,null,null,null,null,null,null,null,null,null,null,null,null,null,null,null,null,null,null,null,null,null,null,null,null,null,null,null,null,null,null,null,null,null,null,"Field Office",2000]
[null,null,null,null,null,null,null,null,null,null,null,null,null,null,null,null,null,null,null,null,null,null,null,null,null,null,null,null,null,null,null,null,null,null,null,null,null,null,null,null,null,null,null,null,null,null,null,null,null,null,null,null,null,null,null,null,null,null,null,null,null,null,null,null,null,null,null,null,null,null,null,null,null,null,null,null,null,null,null,null,null,null,null,null,null,null,null,null,null,null,null,null,null,null,null,null,null,null,null,null,null,null,null,null,null,null,null,null,null,null,null,null,null,null,null,null,null,null,null,null,null,null,null,null,null,null,null,null,null,null,null,null,null,null,null,null,null,null,null,null,null,null,null,null,null,null,null,null,null,null,null,null,null,null,null,null,null,null,null,null,null,null,null,null,null,null,null,null,null,null,null,null,null,null,null,null,null,null,null,null,null,null,null,null,null,null,null,null,null,null,null,null,null,null,null,"Mechanical ",1000]
[null,null,null,null,null,null,null,null,null,null,null,null,null,null,null,null,null,null,null,null,null,null,null,null,null,null,null,null,null,null,null,null,null,null,null,null,null,null,null,null,null,null,null,null,null,null,null,null,null,null,null,null,null,null,null,null,null,null,null,null,null,null,null,null,null,null,null,null,null,null,null,null,null,null,null,null,null,null,null,null,null,null,null,null,null,null,null,null,null,null,null,null,null,null,null,null,null,null,null,null,null,null,null,null,null,null,null,null,null,null,null,null,null,null,null,null,null,null,null,null,null,null,null,null,null,null,null,null,null,null,null,null,null,null,null,null,null,null,null,null,null,null,null,null,null,null,null,null,null,null,null,null,null,null,null,null,null,null,null,null,null,null,null,null,null,null,null,null,null,null,null,null,null,null,null,null,null,null,null,null,null,null,null,null,null,null,null,null,null,null,null,null,null,null,null,"Electrical",1000]
[null,null,null,null,null,null,null,null,null,null,null,null,null,null,null,null,null,null,null,null,null,null,null,null,null,null,null,null,null,null,null,null,null,null,null,null,null,null,null,null,null,null,null,null,null,null,null,null,null,null,null,null,null,null,null,null,null,null,null,null,null,null,null,null,null,null,null,null,null,null,null,null,null,null,null,null,null,null,null,null,null,null,null,null,null,null,null,null,null,null,null,null,null,null,null,null,null,null,null,null,null,null,null,null,null,null,null,null,null,null,null,null,null,null,null,null,null,null,null,null,null,null,null,null,null,null,null,null,null,null,null,null,null,null,null,null,null,null,null,null,null,null,null,null,null,null,null,null,null,null,null,null,null,null,null,null,null,null,null,null,null,null,null,null,null,null,null,null,null,null,null,null,null,null,null,null,null,null,null,null,null,null,null,null,null,null,null,null,null,null,null,null,null,null,null,"Civil",1000]
[null,null,null,null,null,null,null,null,null,null,null,null,null,null,null,null,null,null,null,null,null,null,null,null,null,null,null,null,null,null,null,null,null,null,null,null,null,null,null,null,null,null,null,null,null,null,null,null,null,null,null,null,null,null,null,null,null,null,null,null,null,null,null,null,null,null,null,null,null,null,null,null,null,null,null,null,null,null,null,null,null,null,null,null,null,null,null,null,null,null,null,null,null,null,null,null,null,null,null,null,null,null,null,null,null,null,null,null,null,null,null,null,null,null,null,null,null,null,null,null,null,null,null,null,null,null,null,null,null,null,null,null,null,null,null,null,null,null,null,null,null,null,null,null,null,null,null,null,null,null,null,null,null,null,null,null,null,null,null,null,null,null,null,null,null,null,null,null,null,null,null,null,null,null,null,null,null,null,null,null,null,null,null,null,null,null,null,null,null,null,null,null,null,null,null,"Total",{"$f":"SUM(GO137:GO140)","v":5000},null,{"$f":"SUM(GQ137:GQ140)","v":0},{"$f":"SUM(GR137:GR140)","v":0}]
[]
[]
[]
[null,null,null,null,null,null,null,null,null,null,null,null,null,null,null,null,null,null,null,null,null,null,null,null,null,null,null,null,null,null,null,null,null,null,null,null,null,null,null,null,null,null,null,null,null,null,null,null,null,null,null,null,null,null,null,null,null,null,null,null,null,null,null,null,null,null,null,null,null,null,null,null,null,null,null,null,null,null,null,null,null,null,null,null,null,null,null,null,null,null,null,null,null,null,null,null,null,null,null,null,null,null,null,null,null,null,null,null,null,null,null,null,null,null,null,null,null,null,null,null,null,null,null,null,null,null,null,null,null,null,null,null,null,null,null,null,null,null,null,null,null,null,null,null,null,null,null,null,null,null,null,null,null,null,null,null,null,null,null,null,null,null,null,null,null,null,null,null,null,null,null,null,null,null,null,null,null,null,null,null,null,null,null,null,null,null,null,null,null,null,null,null,null,null,null,null,"Mega Project (Over 250 Plan Pages)"]
[]
[null,null,null,null,null,null,null,null,null,null,null,null,null,null,null,null,null,null,null,null,null,null,null,null,null,null,null,null,null,null,null,null,null,null,null,null,null,null,null,null,null,null,null,null,null,null,null,null,null,null,null,null,null,null,null,null,null,null,null,null,null,null,null,null,null,null,null,null,null,null,null,null,null,null,null,null,null,null,null,null,null,null,null,null,null,null,null,null,null,null,null,null,null,null,null,null,null,null,null,null,null,null,null,null,null,null,null,null,null,null,null,null,null,null,null,null,null,null,null,null,null,null,null,null,null,null,null,null,null,null,null,null,null,null,null,null,null,null,null,null,null,null,null,null,null,null,null,null,null,null,null,null,null,null,null,null,null,null,null,null,null,null,null,null,null,null,null,null,null,null,null,null,null,null,null,null,null,null,null,null,null,null,null,null,null,null,null,null,null,null,null,null,null,null,null,null,"35% Plans","65% Plans","100% Plans","Final Review"]
[null,null,null,null,null,null,null,null,null,null,null,null,null,null,null,null,null,null,null,null,null,null,null,null,null,null,null,null,null,null,null,null,null,null,null,null,null,null,null,null,null,null,null,null,null,null,null,null,null,null,null,null,null,null,null,null,null,null,null,null,null,null,null,null,null,null,null,null,null,null,null,null,null,null,null,null,null,null,null,null,null,null,null,null,null,null,null,null,null,null,null,null,null,null,null,null,null,null,null,null,null,null,null,null,null,null,null,null,null,null,null,null,null,null,null,null,null,null,null,null,null,null,null,null,null,null,null,null,null,null,null,null,null,null,null,null,null,null,null,null,null,null,null,null,null,null,null,null,null,null,null,null,null,null,null,null,null,null,null,null,null,null,null,null,null,null,null,null,null,null,null,null,null,null,null,null,null,null,null,null,null,null,null,null,null,null,null,null,null,null,null,null,null,null,null,"Field Office",2000]
[null,null,null,null,null,null,null,null,null,null,null,null,null,null,null,null,null,null,null,null,null,null,null,null,null,null,null,null,null,null,null,null,null,null,null,null,null,null,null,null,null,null,null,null,null,null,null,null,null,null,null,null,null,null,null,null,null,null,null,null,null,null,null,null,null,null,null,null,null,null,null,null,null,null,null,null,null,null,null,null,null,null,null,null,null,null,null,null,null,null,null,null,null,null,null,null,null,null,null,null,null,null,null,null,null,null,null,null,null,null,null,null,null,null,null,null,null,null,null,null,null,null,null,null,null,null,null,null,null,null,null,null,null,null,null,null,null,null,null,null,null,null,null,null,null,null,null,null,null,null,null,null,null,null,null,null,null,null,null,null,null,null,null,null,null,null,null,null,null,null,null,null,null,null,null,null,null,null,null,null,null,null,null,null,null,null,null,null,null,null,null,null,null,null,null,"Mechanical ",1000]
[null,null,null,null,null,null,null,null,null,null,null,null,null,null,null,null,null,null,null,null,null,null,null,null,null,null,null,null,null,null,null,null,null,null,null,null,null,null,null,null,null,null,null,null,null,null,null,null,null,null,null,null,null,null,null,null,null,null,null,null,null,null,null,null,null,null,null,null,null,null,null,null,null,null,null,null,null,null,null,null,null,null,null,null,null,null,null,null,null,null,null,null,null,null,null,null,null,null,null,null,null,null,null,null,null,null,null,null,null,null,null,null,null,null,null,null,null,null,null,null,null,null,null,null,null,null,null,null,null,null,null,null,null,null,null,null,null,null,null,null,null,null,null,null,null,null,null,null,null,null,null,null,null,null,null,null,null,null,null,null,null,null,null,null,null,null,null,null,null,null,null,null,null,null,null,null,null,null,null,null,null,null,null,null,null,null,null,null,null,null,null,null,null,null,null,"Electrical",1000]
[null,null,null,null,null,null,null,null,null,null,null,null,null,null,null,null,null,null,null,null,null,null,null,null,null,null,null,null,null,null,null,null,null,null,null,null,null,null,null,null,null,null,null,null,null,null,null,null,null,null,null,null,null,null,null,null,null,null,null,null,null,null,null,null,null,null,null,null,null,null,null,null,null,null,null,null,null,null,null,null,null,null,null,null,null,null,null,null,null,null,null,null,null,null,null,null,null,null,null,null,null,null,null,null,null,null,null,null,null,null,null,null,null,null,null,null,null,null,null,null,null,null,null,null,null,null,null,null,null,null,null,null,null,null,null,null,null,null,null,null,null,null,null,null,null,null,null,null,null,null,null,null,null,null,null,null,null,null,null,null,null,null,null,null,null,null,null,null,null,null,null,null,null,null,null,null,null,null,null,null,null,null,null,null,null,null,null,null,null,null,null,null,null,null,null,"Civil",1000]
[null,null,null,null,null,null,null,null,null,null,null,null,null,null,null,null,null,null,null,null,null,null,null,null,null,null,null,null,null,null,null,null,null,null,null,null,null,null,null,null,null,null,null,null,null,null,null,null,null,null,null,null,null,null,null,null,null,null,null,null,null,null,null,null,null,null,null,null,null,null,null,null,null,null,null,null,null,null,null,null,null,null,null,null,null,null,null,null,null,null,null,null,null,null,null,null,null,null,null,null,null,null,null,null,null,null,null,null,null,null,null,null,null,null,null,null,null,null,null,null,null,null,null,null,null,null,null,null,null,null,null,null,null,null,null,null,null,null,null,null,null,null,null,null,null,null,null,null,null,null,null,null,null,null,null,null,null,null,null,null,null,null,null,null,null,null,null,null,null,null,null,null,null,null,null,null,null,null,null,null,null,null,null,null,null,null,null,null,null,null,null,null,null,null,null,"Total",{"$f":"SUM(GO148:GO151)","v":5000},null,{"$f":"SUM(GQ148:GQ151)","v":0},{"$f":"SUM(GR148:GR151)","v":0}]

{"sheet":"Team Info","index":2,"n_rows":38,"n_cols":45,"rows_kept":38,"cut":false,"hidden":true,"merged":[]}
[]
["Resident/Project Engineers","Email","Org Code","Office","Phone","Mobile Phone","Base","Architect","Org Code","Office","Phone","Mobile Phone","Civil","Email","Org Code","Office","Phone","Mobile Phone","Electrical","Email","Org Code","Office","Phone","Mobile Phone","Mechcanical","Email","Org Code","Office","Phone","Mobile Phone",null,"Project Manager ","Email",null,null,"Project Manager NC","Phone 912-652-XXXX","Project Manager GA",null,null,null,null,"Rate","PPB Date","ORG"]
["Amy Vaughn","Amy.M.Vaughn@USACE.army.mil","K6M1DE0","CD-BEA","706-587-8727",null,"(Pull Down Menu)",null,null,null,null,null,null,null,null,null,null,null,null,null,null,null,null,null,null,null,null,null,null,null,"Jones","Jimmy Jones","Janes.F.Jones@USACE.army.mil","x5909","Jimmy Jones x5909","Jimmy Jones",5909,"Steve Hill",5136,null,"E","Ford",115.55,"2014-04-06","K6M1JA0"]
["Dan Davis","Daniel.H.Davis@USACE.army.mil","K6M1J00","CD-BR","910-303-9950","910-303-9950","Fort_Benning","Terry Dismukes","K6L0BN0","EN-DAS","912-652-5544",null,"Andy Cox","Andrew.J.Cox@USACE.army.mil","K6M1WA0","CD-QA","912-322-7772",null,"Andy Cox","Andrew.J.Cox@USACE.army.mil","K6M1WA0","CD-QA","912-322-7772",null,"Matt Kilmer","Matthew.J.Kilmer@usace.army.mil","K6M1WA0","CD-QA","912-767-9840","912-320-5012","Rush","Stephanie Rush","Stephanie.E.Rush@USACE.army.mil","x5796","Stephanie Rush x5796","Stephanie Rush",5796,"Glenn Comeaux",5189,null,"E","Inhulsen",118.51,"2014-04-06","K6M1F00"]
["Dave Warren","David.F.Warren@usace.army.mil","K6M1N00","CD-ST","912-767-9819","912-492-0142","Fort_Bragg",null,null,null,null,null,"Bill Mangum","William.P.Mangum@usace.army.mil","K6M1JA0","CD-BRB","910-643-8538","910-308-8569","Garry Inhulsen","Gary.A.Inhulsen@USACE.army.mil","K6M1F00","CD-RO","(478) 926-2101","(478) 396-2121","Terry Brooks","Terry.S.Brooks@usace.army.mil","K6M1JE0","CD-ST","919-722-7115","919-429-1043","Harrell","Craig Harrell","Craig.L.Harrell@USACE.army.mil","x5150","Craig Harrell x5150","Craig Harrell",5150,"Johnny Grandison",5660,null,"E","Nowers",103.51,"2014-04-06","K6M1AC0"]
["Dale Barlow","Edwin.D.Barlow@USACE.army.mil","K6M1F00","CD-RO","478-926-0290","478-293-8604","Fort_Gordon_Meekins",null,null,null,null,null,"Garry Inhulsen","Gary.A.Inhulsen@USACE.army.mil","K6M1F00","CD-RO","(478) 926-2101","(478) 396-2121",null,"Robert.M.Ford@USACE.army.mil","K6M1JA0","CD-BRB","910-432-0036","910-432-0036","Bill Mangum","William.P.Mangum@usace.army.mil","K6M1JA0","CD-BRB","910-643-8538","910-308-8569","Church","Helane Church","Helane.T.Church@USACE.army.mil","910-396-4870","Helane Church 910-396-4870","Helane Church","910-396-4870","Ken Epperley",5658,null,"M","Brooks",115.55,"2014-04-06","K6M1JE0"]
["Marcia Meekins","Marcia.C.Meekins@USACE.army.mil","K6M1AB0","CD-GOC","706-305-9210","706-962-2422","Fort_Gordon_Kye",null,null,null,null,null,"Matt Kilmer","Matthew.J.Kilmer@usace.army.mil","K6M1WA0","CD-QA","912-767-9840","912-320-5012",null,null,null,null,null,null,null,null,null,null,null,null,"Reinhardt","Chris Reinhardt","Christopher.D.Reinhardt@USACE.army.mil","x5328","Chris Reinhardt x5328","Chris Reinhardt",5328,"Tony Cady",5642,null,"M","Kilmer",109.26,"2014-04-06","K6M1N00"]
["Eddie Culpepper","Eddie.Culpepper@USACE.army.mil","K6M1DF0","CD-BEO","706-617-4047","706-545-9477","Fort_Stewart",null,null,null,null,null,"Mike Bringman","Michael.G.Bringman@USACE.army.mil","K6M1NA0","CD-STH","(912) 656-5258",null,null,null,null,null,null,null,null,null,null,null,null,null,"Peralta","Michelle Peralta","Michelle.Peralta@USACE.army.mil","x5103","Michelle Peralta x5103","Michelle Peralata",5103,"Tim Morris",5506,null,"M","Mangum",115.55,"2014-04-06","K6M1JA0"]
["Karl Gabzdyl","Karl.A.Gabzdyl@USACE.army.mil","K6M1JA0","CD-BRB","910-643-4388","910-308-8570","Robins_AFB",null,null,null,null,null,"Rich Sillin","Richard.S.Sillin@USACE.army.mil","K6M1WA0","CD-QA","912-652-5094",null,null,null,null,null,null,null,null,null,null,null,null,null,"Leyva-Colon","Lourdes Leyva-Colon","Lourdes.S.Leyva-Colon@USACE.army.mil","x5029","Lourdes Leyva-Colon x5029","Lourdes Leyva-Colon",5029,"Hal Kerkhoff",5754,null,"C","Sillin",116.26,"2014-04-06","K6M1WA0"]
["Karl VanStavorenn","Karl.F.VanStavoren@USACE.army.mil","K6M1NB0","CD-STS","912-767-6878","910-303-9985","Seymour_Johnson_AFB",null,null,null,null,null,"Robert Ford","Robert.M.Ford@USACE.army.mil","K6M1JA0","CD-BRB","910-432-0036","910-432-0036",null,null,null,null,null,null,null,null,null,null,null,null,"Hill","Steve Hill","Steven.A.Hill@USACE.army.mil","x5136","Steve Hill x5136",null,null,"Ken Bright","540-667-2950",null,"A","Murphy",89.14,"2014-04-06","K6M1WA0"]
["Philip Payne","Phillip.G.Payne@USACE.army.mil","K6M1AC0","CD-GOG","706-791-4234","706-969-2372","Hunter_AAF",null,null,null,null,null,"Terry Brooks","Terry.S.Brooks@usace.army.mil","K6M1JE0","CD-ST","919-722-7115","919-429-1043",null,null,null,null,null,null,null,null,null,null,null,null,"Comeaux","Glenn Comeaux","Glenn.E.Comeaux@USACE.army.mil","x5189","Glenn Comeaux x5189"]
["Richard Thomas","Richard.N.Thomas@USACE.army.mil","K6M1FC0","CD-ROR","478-926-2149",null,"Fort_Gillem",null,null,null,null,null,null,null,null,null,null,null,null,null,null,null,null,null,null,null,null,null,null,null,"Grandison","Johnny Grandison","Johnny.L.Grandison2@USACE.army.mil","x5660","Johnny Grandison x5660",null,null,"Mark Puhalla",5696]
["Steve Blanchard","Stephen.T.Blanchard@USACE.army.mil","K6M1JE0","CD-BRJ","919-722-5869","919-429-1048","Camp_Merrill",null,null,null,null,null,null,null,null,null,null,null,null,null,null,null,null,null,null,null,null,null,null,null,"Epperley","Ken Epperley","Kenneth.D.Epperley@usace.army.mil","x5658","Ken Epperley x5658",null,null,"Glynn Richards",5659,null,"E","Fogt",112.12,"2014-03-23","K6M1NB0"]
["Troy Funk","Troy.A.Funk@USACE.army.mil","K6M1NA0","CD-STH","912-652-6152","912-856-7743","Other",null,null,null,null,null,null,null,null,null,null,null,null,null,null,null,null,null,null,null,null,null,null,null,"Cady","Tony Cady","Anthony.E.Cady@USACE.army.mil","x5642","Tony Cady x5642",null,null,null,null,null,"C","Bringman",81.569999999999993,"2014-04-06","K6M1NA0"]
["Harry Kye","Harry.H.Kye@usace.army.mil","K6M1A00","CD-GO","706-771-1391",null,null,null,null,null,null,null,null,null,null,null,null,null,null,null,null,null,null,null,null,null,null,null,null,null,"Morris","Tim Morris","Timothy.C.Morris@USACE.army.mil","x5506","Tim Morris x5506"]
[null,null,null,null,null,null,null,null,null,null,null,null,null,null,null,null,null,null,null,null,null,null,null,null,null,null,null,null,null,null,"Kerkhoff","Hal Kerkhoff","Harold.J.Kerkhoff@USACE.army.mil","x5754","Hal Kerkhoff x5754"]
[null,null,null,null,null,null,null,null,null,null,null,null,null,null,null,null,null,null,null,null,null,null,null,null,null,null,null,null,null,null,"Bright","Ken Bright","Kenneth.O.Bright@USACE.army.mil","540-667-2950","Ken Bright 540-667-2950"]
[null,null,null,null,null,null,null,null,null,null,null,null,null,null,null,null,null,null,null,null,null,null,null,null,null,null,null,null,null,null,"Puhalla","Mark Puhalla","Mark.T.Puhalla@USACE.army.mil","x5696","Mark Puhalla x5696"]
[null,null,null,null,null,null,null,null,null,null,null,null,null,null,null,null,null,null,null,null,null,null,null,null,null,null,null,null,null,null,"Richards","Glynn Richards","Glynn.W.Richards@USACE.army.mil","x5659","Glynn Richards x5659"]
[]
[]
[null,null,null,null,null,null,null,"Ford",115.55,null,null,null,null,null,null,null,null,null,null,null,null,null,null,null,null,null,null,null,null,null,null,"Jimmy Jones x5909","Janes.F.Jones@USACE.army.mil"]
[null,null,null,null,null,null,"E","Inhulsen",118.51,null,null,null,null,null,null,null,null,null,null,null,null,null,null,null,null,null,null,null,null,null,null,"Stephanie Rush x5796","Stephanie.E.Rush@USACE.army.mil"]
[null,null,null,null,null,null,"E","Nowers",103.51,null,null,null,null,null,null,null,null,null,null,null,null,null,null,null,null,null,null,null,null,null,null,"Craig Harrell x5150","Craig.L.Harrell@USACE.army.mil"]
[null,null,null,null,null,null,"E","Brooks",115.55,null,null,null,null,null,null,null,null,null,null,null,null,null,null,null,null,null,null,null,null,null,null,"Helane Church 910-396-4870","Helane.T.Church@USACE.army.mil"]
[null,null,null,null,null,null,"M","Kilmer",109.26,null,null,null,null,null,null,null,null,null,null,null,null,null,null,null,null,null,null,null,null,null,null,"Chris Reinhardt x5328","Christopher.D.Reinhardt@USACE.army.mil"]
[null,null,null,null,null,null,"M","Mangum",115.55,null,null,null,null,null,null,null,null,null,null,null,null,null,null,null,null,null,null,null,null,null,null,"Michelle Peralta x5103","Michelle.Peralta@USACE.army.mil"]
[null,null,null,null,null,null,"M","Sillin",116.26,null,null,null,null,null,null,null,null,null,null,null,null,null,null,null,null,null,null,null,null,null,null,"Lourdes Leyva-Colon x5029","Lourdes.S.Leyva-Colon@USACE.army.mil"]
[null,null,null,null,null,null,"C","Murphy",89.14,null,null,null,null,null,null,null,null,null,null,null,null,null,null,null,null,null,null,null,null,null,null,"Steve Hill x5136","Steven.A.Hill@USACE.army.mil"]
[null,null,null,null,null,null,"A",null,null,null,null,null,null,null,null,null,null,null,null,null,null,null,null,null,null,null,null,null,null,null,null,"Glenn Comeaux x5189","Glenn.E.Comeaux@USACE.army.mil"]
[null,null,null,null,null,null,null,"Fogt",112.12,null,null,null,null,null,null,null,null,null,null,null,null,null,null,null,null,null,null,null,null,null,null,"Johnny Grandison x5660","Johnny.L.Grandison2@USACE.army.mil"]
[null,null,null,null,null,null,"E","Bringman",81.569999999999993,null,null,null,null,null,null,null,null,null,null,null,null,null,null,null,null,null,null,null,null,null,null,"Ken Epperley x5658","Kenneth.D.Epperley@usace.army.mil"]
[null,null,null,null,null,null,"C",null,null,null,null,null,null,null,null,null,null,null,null,null,null,null,null,null,null,null,null,null,null,null,null,"Tony Cady x5642","Anthony.E.Cady@USACE.army.mil"]
[null,null,null,null,null,null,null,null,null,null,null,null,null,null,null,null,null,null,null,null,null,null,null,null,null,null,null,null,null,null,null,"Tim Morris x5506","Timothy.C.Morris@USACE.army.mil"]
[null,null,null,null,null,null,null,null,null,null,null,null,null,null,null,null,null,null,null,null,null,null,null,null,null,null,null,null,null,null,null,"Hal Kerkhoff x5754","Harold.J.Kerkhoff@USACE.army.mil"]
[null,null,null,null,null,null,null,null,null,null,null,null,null,null,null,null,null,null,null,null,null,null,null,null,null,null,null,null,null,null,null,"Ken Bright 540-667-2950","Kenneth.O.Bright@USACE.army.mil"]
[null,null,null,null,null,null,null,null,null,null,null,null,null,null,null,null,null,null,null,null,null,null,null,null,null,null,null,null,null,null,null,"Mark Puhalla x5696","Mark.T.Puhalla@USACE.army.mil"]
[null,null,null,null,null,null,null,null,null,null,null,null,null,null,null,null,null,null,null,null,null,null,null,null,null,null,null,null,null,null,null,"Glynn Richards x5659","Glynn.W.Richards@USACE.army.mil"]

{"sheet":"BCOES FY16 History","index":3,"n_rows":48,"n_cols":17,"rows_kept":48,"cut":false,"hidden":true,"merged":[]}
[]
[null,null,null,"PA",null,"Admin/Civil","Arch","Structural","RE/PE","Supervisor","Mech","Civil","Elec","Total"]
[null,"BCOEs - Air Traffic Control Tower BOC Seymour Johnson AFB-Craig-Harrell-2016",0.95,17100000,{"$f":"D3/N3","v":976.64058484208124},1830,2227,null,5536,963,2808,926,3220,17509]
[null,"BCOEs - Bragg Butner road - Mrs Peralta-2016 Revision -1 ",1,32944000,{"$f":"D4/N4","v":1816.2972764362112},1830,4453,null,4429,1927,1872,1481,2147,18138]
[null,"BCOEs - Bragg renovation for maintenance complex- Reveiw after 100 percent Final -  Mrs Peralta-Rev 3 ",1,null,0,1000,1000,null,1000,1000,1000,1000,1000,7000]
[null,"BCOEs - SOF TUAV Maint Facility - Benning GA Mark-Puhalla-2016",null,null,0,1873,2227,null,2843,986,1916,948,1931,12714]
[null,"BCOEs - Winship Renovation Hal Kerkhoff -2016",null,14300000,1202.9948683435687,1830,1113,null,3322,963,1872,926,1862,11887]
[null,"BCOEs -Runway at Camp Mackall - Lourdes 2016",null,null,0,915,null,null,3322,963,null,1111,1397,7707]
[null,"BCOEs-bldg 2761 TBUP -08-02-2016",null,22000000,1915.375239421905,1144,1113,null,3322,963,1872,926,2147,11486]
[null,"BCOEs-bldg 3105 Starship Barracks TBUP -07-25-2016 Rev -1",null,33000000,2873.0628591328573,1144,1113,null,3322,963,1872,926,2147,11486]
[null,"BCOEs-CIDC Field Operations Bldg - 07-27-2016",null,2000000,174.12502176562771,1144,1113,null,3322,926,1872,926,2147,11486]
[null,"BCOEs-Milcon AF Personnel Recovery Hanger - HMU - Moody AFB -08-02-2016",null,null,0,1144,1113,null,3322,963,1872,3322,2147,13882]
[]
[null,"AVERAGES",null,null,null,{"$f":"AVERAGE(F3:F12)","v":1385.4},{"$f":"AVERAGE(G3:G12)","v":1719.1111111111111},null,3374,1061.7,1884,1249.2,2014.5,12329.5]
[null,"LOW",null,null,null,{"$f":"MIN(F3:F12)","v":915},{"$f":"MIN(G3:G12)","v":1000},null,1000,926,1000,926,1000,7000]
[null,"HIGH",null,null,null,{"$f":"MAX(F3:F12)","v":1873},{"$f":"MAX(G3:G12)","v":4453},null,5536,1927,2808,3322,3220,18138]
[]
[null,"NEW HIGH",null,null,null,null,{"$f":"G16+($J$27/10/5)+(($F$27-200)/10/5)","v":4938.42},null,{"$f":"I16+($J$27/10/5)+(($F$27-200)/10/5)","v":6021.42},null,{"$f":"K16+($J$27/10/5)+(($F$27-200)/10/5)","v":3293.42},{"$f":"L16+($J$27/10/5)+(($F$27-200)/10/5)","v":3807.42},{"$f":"M16+($J$27/10/5)+(($F$27-200)/10/5)","v":3705.42},{"$f":"N16+($J$27/10/5)+(($F$27-200)/10/5)","v":18623.420000000002}]
[null,"NEW LOW",null,null,null,null,{"$f":"G15+($J$27/10/5)+(($F$27-200)/10/5)","v":1485.42},null,{"$f":"I15+($J$27/10/5)+(($F$27-200)/10/5)","v":1485.42},null,{"$f":"K15+($J$27/10/5)+(($F$27-200)/10/5)","v":1485.42},{"$f":"L15+($J$27/10/5)+(($F$27-200)/10/5)","v":1411.42},{"$f":"M15+($J$27/10/5)+(($F$27-200)/10/5)","v":1485.42},{"$f":"N15+($J$27/10/5)+(($F$27-200)/10/5)","v":7485.42}]
[null,null,null,null,null,null,null,null,null,null,null,null,null,null,null,"Ford",115.55]
[null,"NEW HIGH HOURS",null,null,null,null,{"$f":"G18/Q27","v":55.400717971729861},null,{"$f":"I18/Q25","v":52.110947641713544},null,{"$f":"K18/Q24","v":30.142961742632252},{"$f":"L18/Q26","v":32.749182865990022},{"$f":"M18/Q21","v":31.266728546114251},null,null,"Inhulsen",118.51]
[null,"NEW LOW HOURS",null,null,null,null,{"$f":"G19/Q27","v":16.66389948395782},null,{"$f":"I19/Q25","v":12.855214192990049},null,{"$f":"K19/Q24","v":13.595277320153762},{"$f":"L19/Q26","v":12.140202993290901},{"$f":"M19/Q21","v":12.534132140747616},null,null,"Nowers",103.51]
[null,null,null,null,null,null,null,null,null,null,null,null,null,null,null,"Brooks",115.55]
[null,null,null,null,null,null,null,null,null,null,null,null,null,null,null,"Kilmer",109.26]
[null,null,null,null,null,null,null,null,null,null,null,null,null,null,null,"Mangum",115.55]
[null,null,null,null,null,null,null,null,null,null,null,null,null,null,null,"Sillin",116.26]
[null,"TOTALS",null,null,null,{"$f":"SUM(F3:F12)","v":13854},{"$f":"SUM(G3:G12)","v":15472},null,{"$f":"SUM(I3:I12)","v":33740},10617,16956,12492,20145,123295,null,"Murphy",89.14]
[]
[null,null,null,null,null,null,null,null,null,null,null,null,null,null,null,"Fogt",112.12]
[null,null,null,null,null,null,null,null,null,null,null,null,null,null,null,"Bringman",81.569999999999993]
[]
[null,null,null,"PAGES",null,null,"Arch","Structural","RE/PE",null,"Mech","Civil","Elec"]
[null,null,null,null,null,null,null,null,null,"65% and 95%"]
[null,"NEW HIGH HOURS",null,"376 & Up",null,null,{"$f":"G35+5","v":32.700358985864931},33,62,null,34,38,35,null,"401 - 500","201 - UP"]
[null,null,null,"301 & 375",null,55.400717971729861,27.700358985864931,27.700358985864931,52.110947641713544,null,30.142961742632252,32.749182865990022,31.266728546114251,null,"301 - 400","151 - 200"]
[null,null,null,"226 - 300",null,{"$f":"F37+($F$35-$F$39)/4","v":45.716513349786851},22.858256674893425,22.858256674893425,{"$f":"I37+($I$35-$I$39)/4","v":42.297014279532675},null,{"$f":"K37+($K$35-$K$39)/4","v":26.006040637012624},{"$f":"L37+($L$35-$L$39)/4","v":27.596937897815245},{"$f":"M37+($M$35-$M$39)/4","v":26.583579444772592},null,"201 - 300","101 - 150"]
[null,null,null,"151 - 225",null,{"$f":"F38+($F$35-$F$39)/4","v":36.032308727843841},18.01615436392192,18.01615436392192,{"$f":"I38+($I$35-$I$39)/4","v":32.483080917351799},null,{"$f":"K38+($K$35-$K$39)/4","v":21.869119531393004},{"$f":"L38+($L$35-$L$39)/4","v":22.444692929640464},{"$f":"M38+($M$35-$M$39)/4","v":21.900430343430934},null,"101- 200","51 - 100"]
[null,"NEW LOW HOURS",null,"76 - 150",null,{"$f":"F39+($F$35-$F$39)/4","v":26.348104105900831},13.174052052950415,13.174052052950415,{"$f":"I39+($I$35-$I$39)/4","v":22.669147555170923},null,{"$f":"K39+($K$35-$K$39)/4","v":17.732198425773383},{"$f":"L39+($L$35-$L$39)/4","v":17.292447961465683},{"$f":"M39+($M$35-$M$39)/4","v":17.217281242089275},null,"0 - 100","0 - 50"]
[null,null,null,"0 - 75",null,16.66389948395782,8.3319497419789101,8.3319497419789101,12.855214192990049,null,13.595277320153762,12.140202993290901,12.534132140747616]
[]
[]
[null,null,null,null,null,null,null,null,null,"35% - 100% Resubmit"]
[null,null,null,"376 & Up",null,null,11,11,20,null,12,14,12]
[null,null,null,"301 & 375",null,null,{"$f":"G35/3","v":9.2334529952883102},{"$f":"H35/3","v":9.2334529952883102},17.37031588057118,0,10.04765391421075,10.916394288663341,10.42224284870475]
[null,null,null,"226 - 300",null,null,{"$f":"G36/3","v":7.6194188916311418},7.6194188916311418,14.099004759844226,0,8.6686802123375415,9.1989792992717483,8.8611931482575308]
[null,null,null,"151 - 225",null,null,6.0053847879739735,6.0053847879739735,10.827693639117266,0,7.2897065104643346,7.481564309880155,7.3001434478103109]
[null,null,null,"76 - 150",null,null,4.3913506843168051,4.3913506843168051,7.5563825183903077,0,5.9107328085911277,5.7641493204885608,5.7390937473630919]
[null,null,null,"0 - 75",null,null,2.7773165806596367,2.7773165806596367,4.2850713976633497,0,4.5317591067179208,4.0467343310969666,4.1780440469158719]

{"sheet":"Projects Lookup","index":4,"n_rows":55,"n_cols":20,"rows_kept":55,"cut":false,"hidden":true,"merged":[]}
[{"$f":"'Project EX Input'!C1","v":"INST"},{"$f":"'Project EX Input'!E1","v":"PROJECTNAME"},{"$f":"'Project EX Input'!F1","v":"PN"},{"$f":"'Project EX Input'!J1","v":"PM"},{"$f":"'Project EX Input'!L1","v":"PA"},"FY",null,"Fort Benning","Fort Bragg","Fort Gillum","Fort Gordon","Hunter AAF","Fort Jackson","Maxwell AFB","Camp Merrill","Moody AFB","Robins AFB","Fort Rucker","Seymour Johnson AFB","Fort Stewart"]
[{"$f":"'Project EX Input'!C19","v":0},{"$f":"'Project EX Input'!E19","v":0},{"$f":"'Project EX Input'!F19","v":0},{"$f":"'Project EX Input'!J19","v":0},{"$f":"'Project EX Input'!L19","v":0},null,null,"Pull Down Menu"]
[{"$f":"'Project EX Input'!C20","v":0},{"$f":"'Project EX Input'!E20","v":0},{"$f":"'Project EX Input'!F20","v":0},{"$f":"'Project EX Input'!J20","v":0},{"$f":"'Project EX Input'!L20","v":0},null,null,{"$f":"B23","v":"Maneuver / Training Area Heavy Forces"},{"$f":"B30","v":"Water Source Heat Pumps, Cooling Tower"},{"$f":"IF($A2=\"Benning\",$B2,\" \")","v":" "},{"$f":"B36","v":"Command and Control Facility"},{"$f":"IF($A2=\"Benning\",$B2,\" \")","v":" "},{"$f":"B44","v":"Replace Pierce Terrace ES"},{"$f":"B45","v":"Replace/Renovate Maxwell ES/MS"},{"$f":"IF($A2=\"Benning\",$B2,\" \")","v":" "},{"$f":"B46","v":"Replace Truck Fill Stand"},{"$f":"B47","v":"Airfield Fence & Gates"},{"$f":"IF($A2=\"Benning\",$B2,\" \")","v":" "},{"$f":"B50","v":"Air Traffic Control Tower/Base Operations Complex"},{"$f":"B51","v":"MP Station"}]
[{"$f":"'Project EX Input'!C21","v":0},{"$f":"'Project EX Input'!E21","v":"Design in Progress"},{"$f":"'Project EX Input'!F21","v":"OTHER FY-16 & Prior Under Design"},{"$f":"'Project EX Input'!J21","v":0},{"$f":"'Project EX Input'!L21","v":62744000},null,null,"Blg 2761 TBUP","Replace Butner ES",null,{"$f":"B37","v":"SCIF (Cyber CoE Battle Lab)"},null,null,null,null,null,{"$f":"B48","v":0},null,null,{"$f":"B52","v":"SOF Company Ops Facility"}]
[{"$f":"'Project EX Input'!C22","v":0},{"$f":"'Project EX Input'!E22","v":"Advertised"},{"$f":"'Project EX Input'!F22","v":"OTHER FY-16 & Prior Advertised"},{"$f":"'Project EX Input'!J22","v":0},{"$f":"'Project EX Input'!L22","v":20592000},null,null,"Blg 3105 TBUP","Repair TBUP Bldg. D-3026",null,"Administrative Building, General Purpose",null,null,null,null,null,null,null,null,{"$f":"B53","v":"CIDC Field Operations Building"}]
[{"$f":"'Project EX Input'!C23","v":0},{"$f":"'Project EX Input'!E23","v":"Evaluating proposals"},{"$f":"'Project EX Input'!F23","v":"OTHER FY-16 & Prior Proposals Rec'd & Eval in Prog"},{"$f":"'Project EX Input'!J23","v":0},{"$f":"'Project EX Input'!L23","v":93750000},null,null,"Ranger Barracks 2937, 2938, 2939","Renovate Pope Fire Station",null,"Winship Hall Repair, Bldg. 29718",null,null,null,null,null,null,null,null,{"$f":"B54","v":"Support / Maintenance Warehouse"}]
[{"$f":"'Project EX Input'!C24","v":0},{"$f":"'Project EX Input'!E24","v":"Discussions in progress"},{"$f":"'Project EX Input'!F24","v":"OTHER FY-16 & Prior In Discussions"},{"$f":"'Project EX Input'!J24","v":0},{"$f":"'Project EX Input'!L24","v":0},null,null,"Ranger Barracks 2936, 2940","Renovate Volar Barracks 4445,4350, 5784, 5117, & 5122",null,"Cyber CoE RLB Swing Space",null,null,null,null,null,null,null,null,{"$f":"B55","v":"VFD Drives in HVAC Systems"}]
[{"$f":"'Project EX Input'!C25","v":0},{"$f":"'Project EX Input'!E25","v":"Funds and Code 9 req."},{"$f":"'Project EX Input'!F25","v":"OTHER FY-16 & Prior Awaiting funds and Code 9 "},{"$f":"'Project EX Input'!J25","v":0},{"$f":"'Project EX Input'!L25","v":0},null,null,"Blg 3305 TBUP","Replace GREEN Ramp, North (Phase II), FA-80003-3P",null,"NCOA Bks HVAC Repair"]
[{"$f":"'Project EX Input'!C26","v":0},{"$f":"'Project EX Input'!E26","v":"Award in Progress"},{"$f":"'Project EX Input'!F26","v":"OTHER FY-16 & Prior Ready To Award"},{"$f":"'Project EX Input'!J26","v":0},{"$f":"'Project EX Input'!L26","v":0},null,null,"Bldgs 2817 & 298 Retrofit Chillers",null,null,"TBUP Bldg 25703"]
[{"$f":"'Project EX Input'!C27","v":0},{"$f":"'Project EX Input'!E27","v":"Reprogramming action required"},{"$f":"'Project EX Input'!F27","v":"OTHER FY-16 & Prior Under Congressional  Reprog"},{"$f":"'Project EX Input'!J27","v":0},{"$f":"'Project EX Input'!L27","v":105912000},null,null,{"$f":"IF(A9=\"Benning\",B9,\" \")","v":" "},null,null,{"$f":"B43","v":"Cyber COE RLB SCIF"}]
[{"$f":"'Project EX Input'!C28","v":0},null,{"$f":"'Project EX Input'!F28","v":"OTHER FY-16 & Prior Awarded"},{"$f":"'Project EX Input'!J28","v":0},{"$f":"'Project EX Input'!L28","v":1600000},null,null," "]
[{"$f":"'Project EX Input'!C29","v":0},null,{"$f":"'Project EX Input'!F29","v":0},{"$f":"'Project EX Input'!J29","v":0},{"$f":"'Project EX Input'!L29","v":284598000},null,null," "]
[{"$f":"'Project EX Input'!C30","v":0},null,{"$f":"'Project EX Input'!F30","v":0},{"$f":"'Project EX Input'!J30","v":0},{"$f":"'Project EX Input'!L30","v":0},null,null," "]
[{"$f":"'Project EX Input'!C46","v":0},null,{"$f":"'Project EX Input'!F46","v":0},{"$f":"'Project EX Input'!J46","v":0},{"$f":"'Project EX Input'!L46","v":0},null,null," "]
[{"$f":"'Project EX Input'!C47","v":0},null,{"$f":"'Project EX Input'!F47","v":0},{"$f":"'Project EX Input'!J47","v":0},{"$f":"'Project EX Input'!L47","v":0},null,null," "]
[{"$f":"'Project EX Input'!C48","v":0},null,{"$f":"'Project EX Input'!F48","v":0},{"$f":"'Project EX Input'!J48","v":0},{"$f":"'Project EX Input'!L48","v":0}]
[{"$f":"'Project EX Input'!C49","v":0},null,{"$f":"'Project EX Input'!F49","v":0},{"$f":"'Project EX Input'!J49","v":0},{"$f":"'Project EX Input'!L49","v":0}]
[{"$f":"'Project EX Input'!C50","v":0},null,{"$f":"'Project EX Input'!F50","v":0},{"$f":"'Project EX Input'!J50","v":0},{"$f":"'Project EX Input'!L50","v":0}]
[{"$f":"'Project EX Input'!C51","v":0},null,{"$f":"'Project EX Input'!F51","v":0},{"$f":"'Project EX Input'!J51","v":0},{"$f":"'Project EX Input'!L51","v":0}]
[{"$f":"'Project EX Input'!C52","v":0},null,{"$f":"'Project EX Input'!F52","v":0},{"$f":"'Project EX Input'!J52","v":0},{"$f":"'Project EX Input'!L52","v":0}]
[{"$f":"'Project EX Input'!C53","v":0},null,{"$f":"'Project EX Input'!F53","v":0},{"$f":"'Project EX Input'!J53","v":0},{"$f":"'Project EX Input'!L53","v":0}]
[{"$f":"'Project EX Input'!C54","v":0},null,{"$f":"'Project EX Input'!F54","v":0},{"$f":"'Project EX Input'!J54","v":0},{"$f":"'Project EX Input'!L54","v":0}]
[{"$f":"'Project EX Input'!C15","v":"Benning"},{"$f":"'Project EX Input'!E15","v":"Maneuver / Training Area Heavy Forces"},{"$f":"'Project EX Input'!F15","v":"87980"},{"$f":"'Project EX Input'!J15","v":"Grandison"},{"$f":"'Project EX Input'!L15","v":2850000},"16"]
[{"$f":"'Project EX Input'!C31","v":"Benning"},"Blg 2761 TBUP",{"$f":"'Project EX Input'!F31","v":0},{"$f":"'Project EX Input'!J31","v":"Reinhardt"},{"$f":"'Project EX Input'!L31","v":22000000},16]
[{"$f":"'Project EX Input'!C32","v":"Benning"},"Blg 3105 TBUP",{"$f":"'Project EX Input'!F32","v":0},{"$f":"'Project EX Input'!J32","v":"Reinhardt"},{"$f":"'Project EX Input'!L32","v":33000000},16]
[{"$f":"'Project EX Input'!C33","v":"Benning"},"Ranger Barracks 2937, 2938, 2939",{"$f":"'Project EX Input'!F33","v":0},{"$f":"'Project EX Input'!J33","v":"Reinhardt"},{"$f":"'Project EX Input'!L33","v":10500000},16]
[{"$f":"'Project EX Input'!C34","v":"Benning"},"Ranger Barracks 2936, 2940",{"$f":"'Project EX Input'!F34","v":0},{"$f":"'Project EX Input'!J34","v":"Reinhardt"},{"$f":"'Project EX Input'!L34","v":7000000},16]
[{"$f":"'Project EX Input'!C44","v":"Benning"},"Blg 3305 TBUP",{"$f":"'Project EX Input'!F44","v":0},{"$f":"'Project EX Input'!J44","v":"Reinhardt"},{"$f":"'Project EX Input'!L44","v":32498000},16]
["Benning","Bldgs 2817 & 298 Retrofit Chillers","85776","Comeaux",2000000,17]
[{"$f":"'Project EX Input'!C3","v":"Bragg"},{"$f":"'Project EX Input'!E3","v":"Water Source Heat Pumps, Cooling Tower"},{"$f":"'Project EX Input'!F3","v":"87500"},{"$f":"'Project EX Input'!J3","v":"Comeaux"},{"$f":"'Project EX Input'!L3","v":1850000},"15"]
[{"$f":"'Project EX Input'!C11","v":"Bragg"},{"$f":"'Project EX Input'!E11","v":"Replace Butner ES"},{"$f":"'Project EX Input'!F11","v":"AM00045"},{"$f":"'Project EX Input'!J11","v":"Peralta"},{"$f":"'Project EX Input'!L11","v":32944000},"16"]
[{"$f":"'Project EX Input'!C37","v":"Bragg"},"Repair TBUP Bldg. D-3026",{"$f":"'Project EX Input'!F37","v":"FA-11601-3P"},{"$f":"'Project EX Input'!J37","v":"Leyva-Colon"},{"$f":"'Project EX Input'!L37","v":5000000},"16"]
[{"$f":"'Project EX Input'!C38","v":"Bragg"},"Renovate Pope Fire Station",{"$f":"'Project EX Input'!F38","v":"FA-11006-3P"},{"$f":"'Project EX Input'!J38","v":"Leyva-Colon"},{"$f":"'Project EX Input'!L38","v":5000000},"16"]
[{"$f":"'Project EX Input'!C39","v":"Bragg"},"Renovate Volar Barracks 4445,4350, 5784, 5117, & 5122",{"$f":"'Project EX Input'!F39","v":"FA-11312-9P"},{"$f":"'Project EX Input'!J39","v":"Leyva-Colon"},{"$f":"'Project EX Input'!L39","v":25000000},"16"]
[{"$f":"'Project EX Input'!C45","v":"Bragg"},"Replace GREEN Ramp, North (Phase II), FA-80003-3P",{"$f":"'Project EX Input'!F45","v":"FA-80003-3P"},{"$f":"'Project EX Input'!J45","v":"Leyva-Colon"},{"$f":"'Project EX Input'!L45","v":16026182},"16"]
[{"$f":"'Project EX Input'!C6","v":"Gordon"},{"$f":"'Project EX Input'!E6","v":"Command and Control Facility"},{"$f":"'Project EX Input'!F6","v":"85811"},{"$f":"'Project EX Input'!J6","v":"Puhalla"},{"$f":"'Project EX Input'!L6","v":90000000},"16"]
[{"$f":"'Project EX Input'!C14","v":"Gordon"},{"$f":"'Project EX Input'!E14","v":"SCIF (Cyber CoE Battle Lab)"},{"$f":"'Project EX Input'!F14","v":"87627"},{"$f":"'Project EX Input'!J14","v":"Kerkhoff"},{"$f":"'Project EX Input'!L14","v":2550000},"16"]
[{"$f":"'Project EX Input'!C17","v":"Gordon"},{"$f":"'Project EX Input'!E17","v":"Administrative Building, General Purpose"},{"$f":"'Project EX Input'!F17","v":"89734"},{"$f":"'Project EX Input'!J17","v":"Cady"},{"$f":"'Project EX Input'!L17","v":2300000},"16"]
[{"$f":"'Project EX Input'!C35","v":"Gordon"},"Winship Hall Repair, Bldg. 29718",{"$f":"'Project EX Input'!F35","v":"86038"},{"$f":"'Project EX Input'!J35","v":"Kerkhoff"},{"$f":"'Project EX Input'!L35","v":14300000},"16"]
[{"$f":"'Project EX Input'!C36","v":"Gordon"},"Cyber CoE RLB Swing Space",{"$f":"'Project EX Input'!F36","v":"ST-06141-6P"},{"$f":"'Project EX Input'!J36","v":"Kerkhoff"},{"$f":"'Project EX Input'!L36","v":6500000},"16"]
[{"$f":"'Project EX Input'!C41","v":"Gordon"},"NCOA Bks HVAC Repair",{"$f":"'Project EX Input'!F41","v":"PN 78045  (Bldg 24404)  PN 78043 (Bldg 24407)"},{"$f":"'Project EX Input'!J41","v":"Cady"},{"$f":"'Project EX Input'!L41","v":7000000},"17"]
[{"$f":"'Project EX Input'!C42","v":"Gordon"},"TBUP Bldg 25703",{"$f":"'Project EX Input'!F42","v":"79855"},{"$f":"'Project EX Input'!J42","v":"Kerkhoff"},{"$f":"'Project EX Input'!L42","v":15000000},"16"]
[{"$f":"'Project EX Input'!C43","v":"Gordon"},"Cyber COE RLB SCIF",{"$f":"'Project EX Input'!F43","v":0},{"$f":"'Project EX Input'!J43","v":"Kerkhoff"},{"$f":"'Project EX Input'!L43","v":13730000},"16"]
[{"$f":"'Project EX Input'!C12","v":"Jackson"},{"$f":"'Project EX Input'!E12","v":"Replace Pierce Terrace ES"},{"$f":"'Project EX Input'!F12","v":"AM00035"},{"$f":"'Project EX Input'!J12","v":"Peralta"},{"$f":"'Project EX Input'!L12","v":26157000},"16"]
[{"$f":"'Project EX Input'!C13","v":"Maxwell "},{"$f":"'Project EX Input'!E13","v":"Replace/Renovate Maxwell ES/MS"},{"$f":"'Project EX Input'!F13","v":"AM00110"},{"$f":"'Project EX Input'!J13","v":"Lourdes"},{"$f":"'Project EX Input'!L13","v":32968000},"16"]
[{"$f":"'Project EX Input'!C7","v":"Moody"},{"$f":"'Project EX Input'!E7","v":"Replace Truck Fill Stand"},{"$f":"'Project EX Input'!F7","v":"DESC1710"},{"$f":"'Project EX Input'!J7","v":"Grandison"},{"$f":"'Project EX Input'!L7","v":10900000},"16"]
[{"$f":"'Project EX Input'!C9","v":"Robins"},{"$f":"'Project EX Input'!E9","v":"Airfield Fence & Gates"},{"$f":"'Project EX Input'!F9","v":"UHHZ110323W"},{"$f":"'Project EX Input'!J9","v":"Harrell"},{"$f":"'Project EX Input'!L9","v":1900000},"16"]
[{"$f":"'Project EX Input'!C40","v":"Robins"},null,{"$f":"'Project EX Input'!F40","v":"???"},{"$f":"'Project EX Input'!J40","v":"Comeaux"},{"$f":"'Project EX Input'!L40","v":5526722},"16"]
[{"$f":"'Project EX Input'!C10","v":"Rucker"},{"$f":"'Project EX Input'!E10","v":"Replace Rucker ES/PS "},{"$f":"'Project EX Input'!F10","v":"AM00048"},{"$f":"'Project EX Input'!J10","v":"Lourdes"},{"$f":"'Project EX Input'!L10","v":46787000},"16"]
[{"$f":"'Project EX Input'!C8","v":"Seymour Johnson"},{"$f":"'Project EX Input'!E8","v":"Air Traffic Control Tower/Base Operations Complex"},{"$f":"'Project EX Input'!F8","v":"VKAG013004R5"},{"$f":"'Project EX Input'!J8","v":"Harrell"},{"$f":"'Project EX Input'!L8","v":17100000},"16"]
[{"$f":"'Project EX Input'!C2","v":"Stewart"},{"$f":"'Project EX Input'!E2","v":"MP Station"},{"$f":"'Project EX Input'!F2","v":"81303"},{"$f":"'Project EX Input'!J2","v":"Hill"},{"$f":"'Project EX Input'!L2","v":2000000},"14"]
[{"$f":"'Project EX Input'!C4","v":"Stewart"},{"$f":"'Project EX Input'!E4","v":"SOF Company Ops Facility"},{"$f":"'Project EX Input'!F4","v":"57442"},{"$f":"'Project EX Input'!J4","v":"Hill"},{"$f":"'Project EX Input'!L4","v":7692000},"15"]
[{"$f":"'Project EX Input'!C5","v":"Stewart"},{"$f":"'Project EX Input'!E5","v":"CIDC Field Operations Building"},{"$f":"'Project EX Input'!F5","v":"86787"},{"$f":"'Project EX Input'!J5","v":"Hill"},{"$f":"'Project EX Input'!L5","v":2000000},"15"]
[{"$f":"'Project EX Input'!C16","v":"Stewart"},{"$f":"'Project EX Input'!E16","v":"Support / Maintenance Warehouse"},{"$f":"'Project EX Input'!F16","v":"88047"},{"$f":"'Project EX Input'!J16","v":"Hill"},{"$f":"'Project EX Input'!L16","v":3000000},"16"]
[{"$f":"'Project EX Input'!C18","v":"Stewart"},{"$f":"'Project EX Input'!E18","v":"VFD Drives in HVAC Systems"},{"$f":"'Project EX Input'!F18","v":"85960"},{"$f":"'Project EX Input'!J18","v":"Comeaux"},{"$f":"'Project EX Input'!L18","v":1600000},"16"]

{"sheet":"Data Record","index":5,"n_rows":7,"n_cols":41,"rows_kept":7,"cut":false,"hidden":true,"merged":[]}
[null,1,2,null,null,3]
[null,"Base","Project","PN","FY","PA","Pagecount","Mechanical","Electrical","Civil","SuspenseDate","ProjectManager","ReviewLevel","DateRequested","DrChecks","HDrive","ARMDEC","HardCopy","DBBAE","DBBEN","DBPlans","RFPEN","RFPAE","RFPCOS","NonAwardPkg","ExcessiveBidderRFI","ConferenceOver2","OTRequired","ScheduleFee","ProjectComments","FieldOffName","MechanicalName","ElectricalName","CivilName","CoordinatorName","FieldOfficeCost","MechanicalCost","ElectricalCost","CivilCost","CoordinatorCost","TotalCost"]
[null,"Seymour_Johnson_AFB","Air Traffic Control Tower/Base Operations Complex","VKAG013004R5",16,17100000,16,true,true,true,"2016-09-13","Craig Harrell x5150",0.35,"2016-09-01",false,false,false,false,true,true,false,true,true,true,true,true,true,true,true," ","H56","Matt Kilmer","Andy Cox","Rich Sillin","Rich Sillin",0,0,0,0,230,0]
[null,"Seymour_Johnson_AFB","Air Traffic Control Tower/Base Operations Complex","VKAG013004R5",16,17100000,16,true,true,true,"2016-09-13","Craig Harrell x5150",0.35,"2016-09-01",false,false,false,false,true,true,false,true,true,true,true,true,true,true,true," ","H56","Matt Kilmer","Andy Cox","Rich Sillin","Rich Sillin",0,0,0,0,230,0]
[null,"Seymour_Johnson_AFB","Air Traffic Control Tower/Base Operations Complex","VKAG013004R5",16,17100000,16,true,true,true,"2016-09-13","Craig Harrell x5150",0.35,"2016-09-01",false,false,false,false,true,true,false,true,true,true,true,true,true,true,true," ","H56","Matt Kilmer","Andy Cox","Rich Sillin","Rich Sillin",0,0,0,0,230,0]
[null,"Hunter_AAF","Administrative Building, General Purpose",89734,16,2300000,16,true,false,false,"2016-10-17","Tony Cady x5642",0.35,"2016-10-03",true,false,false,false,false,true,false,false,false,false,true,true,true,true,false," ","H56","Matt Kilmer","Andy Cox","Rich Sillin","Rich Sillin",1000,690,0,0,230,0]
[null,"Hunter_AAF","Administrative Building, General Purpose",89734,16,2300000,16,true,false,false,"2016-10-17","Tony Cady x5642",0.35,"2016-10-03",true,false,false,false,false,true,false,false,false,false,true,true,true,true,false," ","H56","Matt Kilmer","Andy Cox","Rich Sillin","Rich Sillin",1000,690,0,0,230,0]

{"sheet":"Web Info","index":6,"n_rows":37,"n_cols":2,"rows_kept":37,"cut":false,"hidden":true,"merged":[]}
[]
[]
[null,"https://www.extendoffice.com/documents/excel/1355-excel-send-sheet-by-email.html#a3"]
[]
[null,"The Spreadsheet Guru"]
[]
[null,"Excel VBA For Complete Beginners"]
[]
[null,"http://analystcave.com/excel-vba-worksheets-tutorial-vba-activesheet-vs-worksheets/"]
[]
[null,"Data Type Summary"]
[]
[null,"What is DIM and why do people use it"]
[]
[null,"Getting started with VBA"]
[]
[null,".ScreenUpdating = False"]
[]
[null,"Mail Range or selection Ron da Bruin"]
[]
[null,"MSDN VBA Code CH2"]
[]
[null,"msdn 2013 VBA "]
[]
[null,"Diane Poremsky"]
[]
[null,"Appointment Properties"]
[]
[null,"TechOntheNet LEN function"]
[]
[null,"Set objItem = objApp.ActiveInspector.GetCurrentItem()"]
[]
[null,"Send an email to attendees who have not responded"]
[]
[null,"Sub CreateMeetingsfromCSV()"]
[]
[null,"Save and Rename Outlook Email Attachments"]

{"sheet":"Backup","index":7,"n_rows":143,"n_cols":92,"rows_kept":143,"cut":false,"hidden":true,"merged":[[1,1,1,46],[2,1,2,46],[3,1,3,46],[4,1,4,46],[6,1,7,7],[6,9,7,29],[6,31,7,39],[6,41,7,45],[11,1,12,19],[11,20,12,25],[11,27,12,32],[11,34,12,40],[12,41,14,45],[13,1,15,19],[13,20,15,26],[13,27,15,32],[13,33,14,33],[18,3,19,11],[18,16,19,20],[18,25,19,33],[18,37,19,46],[21,3,22,13],[21,16,22,20],[21,25,22,33],[21,37,22,46],[47,1,47,46],[24,3,25,8],[24,16,25,20],[24,25,25,33],[24,37,25,46],[27,3,28,12],[27,16,28,20],[27,25,28,27],[27,30,28,33],[27,37,28,46],[30,2,31,13],[30,25,31,29],[30,36,31,36],[30,37,31,46],[34,2,38,45],[48,1,48,46],[49,1,49,46],[53,7,53,12],[53,31,53,32],[53,34,53,38],[53,40,53,44],[54,7,54,12],[54,31,54,32],[54,34,54,38],[54,40,54,44],[55,7,55,12],[55,31,55,32],[55,34,55,38],[55,40,55,44],[56,7,56,12],[56,31,56,32],[56,34,56,38],[56,40,56,44],[57,7,57,12],[57,31,57,32],[57,34,57,38],[57,40,57,44],[60,31,60,32],[60,34,60,38],[60,40,60,44],[58,7,58,12],[58,31,58,32],[58,34,58,38],[58,40,58,44],[59,31,59,32],[59,34,59,38],[59,40,59,44]]}
[]
[null,"BCOES REVIEW REQUEST FORM"]
[]
[null,"PART I. TO BE COMPLETED BY PROJECT MANAGEMENT STAFF:"]
[]
[null,"1. Base:",null,null,null,null,null,null,null,"2. Project:",null,null,null,null,null,null,null,null,null,null,null,null,null,null,null,null,null,null,null,null,null,"3. PA:",null,null,null,null,null,null,null,null,"4. Page Count"]
[null,"Fort_Bragg",null,null,null,null,null,null,"\u0080","Command and Control Facility",null,null,null,null,null,null,null,null,null,null,null,null,null,null,null,null,null,null,null,null,"\u0080",20000001,null,null,null,null,null,null,null,null,null,100,null,null,null,null,null,null,null,null,null,null,null,null,null,null,null,{"$f":"12/11","v":1.0909090909090908}]
[]
[null,"5. Disciplines:",null,null,null,null,null,null,null,null,null,null,null,null,null,null,null,null,null,null,null,null,null,null,null,null,null,null,null,null,null,null,null,null,"4. Suspense Date:"]
[null,null,null,"Mechanical",null,null,null,null,null,null,"Electrical",null,null,null,null,null,"Civil",null,null,null,"Architect",null,null,null,null,null,"Structural",null,null,null,null,null,null,null,null,null,null,null,null,null,null,"8/17/2016",null,null,null,null,null,null,null,null,null,null,null,null,null,null,null,"AO7-AP12"]
[]
[null,"6. Project Manager in charge of Charge Codes:",null,null,null,null,null,null,null,null,null,null,null,null,null,null,null,null,null,null,"7. Charge Code:",null,null,null,null,null,null,"8. Review Level:",null,null,null,null,null,null,"9. Date Requested:"]
[null,null,null,null,null,null,null,null,null,null,null,null,null,null,null,null,null,null,null,null,null,null,null,null,null,null,null,null,null,null,null,null,null,null,null,null,null,null,null,null,null,"8/2/2016"]
[null,{"$f":"VLOOKUP((VLOOKUP(J7,'Projects Lookup'!B2:E87,3,FALSE)),'Team Info'!AI3:AI19,4,FALSE)","v":{"$error":"#N/A"}},null,null,null,null,null,null,null,null,null,null,null,null,null,null,null,null,null,null,"54H1Y45",null,null,null,null,null,null,"100% Final",null,null,null,null,null,"\u0080\u0080"]
[]
[]
[null,"10. Distribution Fee -  Plans and Specifications:",null,null,null,null,null,null,null,null,null,null,null,null,null,null,null,null,null,null,null,null,null,"11. Contract Type Fee:",null,null,null,null,null,null,null,null,null,null,null,"12. Special Orders Fee:"]
[]
[null,null,null,"ProjNet DrChecks",null,null,null,null,null,null,null,null,null,null,null,null,{"$f":"IF(BE127=TRUE,IF($BE$120=TRUE,$BK$127,0)+IF($BE$121=TRUE,$BK$127,0)+IF($BE$122=TRUE,$BK$127,0)+IF($BE$123=TRUE,$BK$127,0)+IF($BE$124=TRUE,$BK$127,0)+IF($BE$125=TRUE,$BK$127,0),0)","v":0},null,null,null,null,null,null,null,null,"Design-Bid-Build AE",null,null,null,null,null,null,null,null,null,null,null,"Non-Awardable Package"]
[]
[]
[null,null,null,"Link to Shared Drive (H:)",null,null,null,null,null,null,null,null,null,null,null,null,{"$f":"IF(BE128=TRUE,IF($BE$120=TRUE,$BK$128,0)+IF($BE$121=TRUE,$BK$128,0)+IF($BE$122=TRUE,$BK$128,0)+IF($BE$123=TRUE,$BK$128,0)+IF($BE$124=TRUE,$BK$128,0)+IF($BE$125=TRUE,$BK$128,0),0)","v":0},null,null,null,null,null,null,null,null,"Design-Bid-Build EN",null,null,null,null,null,null,null,null,null,null,null,"Excessive Bidder RFI"]
[]
[]
[null,null,null,"AMRDEC ",null,null,null,null,null,null,null,null,null,null,null,null,{"$f":"IF(BE126=TRUE,IF($BE$120=TRUE,$BK$126,0)+IF($BE$121=TRUE,$BK$126,0)+IF($BE$122=TRUE,$BK$126,0)+IF($BE$123=TRUE,$BK$126,0)+IF($BE$124=TRUE,$BK$126,0)+IF($BE$125=TRUE,$BK$126,0),0)","v":0},null,null,null,null,null,null,null,null,"Design-Build Plans",null,null,null,null,null,null,null,null,null,null,null,"Conference Over 2 Hours"]
[]
[]
[null,null,null,"CD Disk/Hard Copies",null,null,null,null,null,null,null,null,null,null,null,null,{"$f":"IF(BE129=TRUE,IF($BE$120=TRUE,$BK$129,0)+IF($BE$121=TRUE,$BK$129,0)+IF($BE$122=TRUE,$BK$129,0)+IF($BE$123=TRUE,$BK$129,0)+IF($BE$124=TRUE,$BK$129,0)+IF($BE$125=TRUE,$BK$129,0),0)","v":0},null,null,null,null,null,null,null,null,"RFP EN",null,null,null,null,"RFP AE",null,null,null,null,null,null,"Overtime Time Required"]
[]
[]
[null,null,"* Fees waived if requested by reviewer. ",null,null,null,null,null,null,null,null,null,null,null,null,null,null,null,null,null,null,null,null,null,null,"RFP COS",null,null,null,null,null,null,null,null,null,null,null,"Schedule Fee"]
[]
[]
[null,"13. Comments for the Reviewers/Project Description:"]
[]
[]
[null,null,null,null,null,null,null,null,null,null,null,null,null,null,null,null,null,null,null,null,null,null,null,null,null,null,null,null,null,null,null,null,null,null,null,null,null,null,null,null,null,null,null,null,null,null,null,null,null,null,null,null,null,null,null,null,null,null,null,"Performance Factors",null,null,null,null,"35% Table",null,null,null,null,null,"65% Table",null,null,null,null,null,"95% Table",null,null,null,null,null,"Resubmit",null,null,null,null,null,"100% Final"]
[null,null,null,null,null,null,null,null,null,null,null,null,null,null,null,null,null,null,null,null,null,null,null,null,null,null,null,null,null,null,null,null,null,null,null,null,null,null,null,null,null,null,null,null,null,null,null,null,null,null,null,null,null,null,null,null,null,"Non-Awardable Package","Excessive Bidder RFI","Conference Over 2 Hours","Overtime Time Required","Schedule Fee",0.35,"Discipline","Pages Low","Pages High","T/F","Hours",0.65,"Discipline","Pages Low","Pages High","T/F","Hours",0.95,"Discipline","Pages Low","Pages High","T/F","Hours","Resubmit","Discipline","Pages Low","Pages High","T/F","Hours","100% Final","Discipline","Pages Low","Pages High","T/F","Hours"]
[null,null,null,null,null,null,null,null,null,null,null,null,null,null,null,null,null,null,null,null,null,null,null,null,null,null,null,null,null,null,null,null,null,null,null,null,null,null,null,null,null,null,null,null,null,null,null,null,null,null,null,null,null,null,null,null,null,1.05,1.25,1.05,null,null,0.35,"Field Office",0,100,{"$f":"AND($AB$14=BK39,$C$54=BL39,$AP$7>BM39,$AP$7<=BN39)","v":false},2,0.65,"Field Office",0,100,{"$f":"AND($AB$14=BQ39,$C$54=BR39,$AP$7>BS39,$AP$7<=BT39)","v":false},4,0.95,"Field Office",0,100,{"$f":"AND($AB$14=BW39,$C$54=BX39,$AP$7>BY39,$AP$7<=BZ39)","v":false},16,"Resubmit","Field Office",0,100,{"$f":"AND($AB$14=CC39,$C$54=CD39,$AP$7>CE39,$AP$7<=CF39)","v":false},6,"100% Final","Field Office",0,100,{"$f":"AND($AB$14=CI39,$C$54=CJ39,$AP$7>CK39,$AP$7<=CL39)","v":true},2]
[null,null,null,null,null,null,null,null,null,null,null,null,null,null,null,null,null,null,null,null,null,null,null,null,null,null,null,null,null,null,null,null,null,null,null,null,null,null,null,null,null,null,null,null,null,null,null,null,null,null,null,null,null,null,null,null,null,1.1000000000000001,1.35,1.1000000000000001,null,null,0.35,"Field Office",101,200,{"$f":"AND($AB$14=BK40,$C$54=BL40,$AP$7>=BM40,$AP$7<=BN40)","v":false},2,0.65,"Field Office",101,200,false,5,0.95,"Field Office",101,200,false,18,"Resubmit","Field Office",101,200,false,8,"100% Final","Field Office",101,200,false,2]
[null,null,null,null,null,null,null,null,null,null,null,null,null,null,null,null,null,null,null,null,null,null,null,null,null,null,null,null,null,null,null,null,null,null,null,null,null,null,null,null,null,null,null,null,null,null,null,null,null,null,null,null,null,null,null,null,null,1,1.45,1,null,null,0.35,"Field Office",201,300,{"$f":"AND($AB$14=BK41,$C$54=BL41,$AP$7>=BM41,$AP$7<=BN41)","v":false},2,0.65,"Field Office",201,300,false,6,0.95,"Field Office",201,300,false,20,"Resubmit","Field Office",201,300,false,10,"100% Final","Field Office",201,300,false,2]
[null,null,null,null,null,null,null,null,null,null,null,null,null,null,null,null,null,null,null,null,null,null,null,null,null,null,null,null,null,null,null,null,null,null,null,null,null,null,null,null,null,null,null,null,null,null,null,null,null,null,null,null,null,null,null,null,null,15,1.55,15,null,null,0.35,"Field Office",301,400,{"$f":"AND($AB$14=BK42,$C$54=BL42,$AP$7>=BM42,$AP$7<=BN42)","v":false},2,0.65,"Field Office",301,400,false,7,0.95,"Field Office",301,400,false,24,"Resubmit","Field Office",301,400,false,12,"100% Final","Field Office",301,400,false,2]
[null,null,null,null,null,null,null,null,null,null,null,null,null,null,null,null,null,null,null,null,null,null,null,null,null,null,null,null,null,null,null,null,null,null,null,null,null,null,null,null,null,null,null,null,null,null,null,null,null,null,null,null,null,null,null,null,null,1.2,1.65,1.2,null,null,0.35,"Field Office",401,500,{"$f":"AND($AB$14=BK43,$C$54=BL43,$AP$7>=BM43,$AP$7<=BN43)","v":false},2,0.65,"Field Office",401,500,false,8,0.95,"Field Office",401,500,false,36,"Resubmit","Field Office",401,500,false,14,"100% Final","Field Office",401,500,false,2]
[null,null,null,null,null,null,null,null,null,null,null,null,null,null,null,null,null,null,null,null,null,null,null,null,null,null,null,null,null,null,null,null,null,null,null,null,null,null,null,null,null,null,null,null,null,null,null,null,null,null,null,null,null,null,null,null,null,1.25,2,1.25,null,null,0.35,"Field Office",501,1000,{"$f":"AND($AB$14=BK44,$C$54=BL44,$AP$7>=BM44,$AP$7<=BN44)","v":false},2,0.65,"Field Office",501,1000,false,9,0.95,"Field Office",501,1000,false,40,"Resubmit","Field Office",501,1000,false,16,"100% Final","Field Office",501,1000,false,2]
[null,null,null,null,null,null,null,null,null,null,null,null,null,null,null,null,null,null,null,null,null,null,null,null,null,null,null,null,null,null,null,null,null,null,null,null,null,null,null,null,null,null,null,null,null,null,null,null,null,null,null,null,null,null,null,null,null,null,null,null,null,null,0.35,"Mechanical",0,100,{"$f":"AND($AB$14=BK45,$C$55=BL45,$AP$7>=BM45,$AP$7<=BN45)","v":false},2,0.65,"Mechanical",0,100,{"$f":"AND($AB$14=BQ45,$C$55=BR45,$AP$7>=BS45,$AP$7<=BT45)","v":false},2,0.95,"Mechanical",0,100,{"$f":"AND($AB$14=BW45,$C$55=BX45,$AP$7>=BY45,$AP$7<=BZ45)","v":false},16,"Resubmit","Mechanical",0,100,{"$f":"AND($AB$14=CC45,$C$55=CD45,$AP$7>=CE45,$AP$7<=CF45)","v":false},6,"100% Final","Mechanical",24,100,{"$f":"AND($AB$14=CI45,$C$55=CJ45,$AP$7>=CK45,$AP$7<=CL45)","v":true},2]
[null,null,null,null,null,null,null,null,null,null,null,null,null,null,null,null,null,null,null,null,null,null,null,null,null,null,null,null,null,null,null,null,null,null,null,null,null,null,null,null,null,null,null,null,null,null,null,null,null,null,null,null,null,null,null,null,null,null,null,null,null,null,0.35,"Mechanical",101,200,false,2,0.65,"Mechanical",101,200,false,3,0.95,"Mechanical",101,200,false,18,"Resubmit","Mechanical",101,200,false,8,"100% Final","Mechanical",101,200,false,2]
[null,null,null,null,null,null,null,null,null,null,null,null,null,null,null,null,null,null,null,null,null,null,null,null,null,null,null,null,null,null,null,null,null,null,null,null,null,null,null,null,null,null,null,null,null,null,null,null,null,null,null,null,null,null,null,null,null,null,null,null,null,null,0.35,"Mechanical",201,300,false,2,0.65,"Mechanical",201,300,false,4,0.95,"Mechanical",201,300,false,20,"Resubmit","Mechanical",201,300,false,10,"100% Final","Mechanical",201,300,false,2]
[null,null,null,null,null,null,null,null,null,null,null,null,null,null,null,null,null,null,null,null,null,null,null,null,null,null,null,null,null,null,null,null,null,null,null,null,null,null,null,null,null,null,null,null,null,null,null,null,null,null,null,null,null,null,null,null,null,null,null,null,null,null,0.35,"Mechanical",301,400,false,2,0.65,"Mechanical",301,400,false,5,0.95,"Mechanical",301,400,false,24,"Resubmit","Mechanical",301,400,false,12,"100% Final","Mechanical",301,400,false,2]
[null,"PART II. TO BE COMPLETED BY QUALITY ASSURANCE STAFF:",null,null,null,null,null,null,null,null,null,null,null,null,null,null,null,null,null,null,null,null,null,null,null,null,null,null,null,null,null,null,null,null,null,null,null,null,null,null,null,null,null,null,null,null,null,null,null,null,null,null,null,null,null,null,null,null,null,null,null,null,0.35,"Mechanical",401,500,false,2,0.65,"Mechanical",401,500,false,6,0.95,"Mechanical",401,500,false,36,"Resubmit","Mechanical",401,500,false,14,"100% Final","Mechanical",401,500,false,2]
[null,null,null,null,null,null,null,null,null,null,null,null,null,null,null,null,null,null,null,null,null,null,null,null,null,null,null,null,null,null,null,null,null,null,null,null,null,null,null,null,null,null,null,null,null,null,null,null,null,null,null,null,null,null,null,null,null,null,null,null,null,null,0.35,"Mechanical",501,1000,false,2,0.65,"Mechanical",501,1000,false,7,0.95,"Mechanical",501,1000,false,40,"Resubmit","Mechanical",501,1000,false,16,"100% Final","Mechanical",501,1000,false,2]
[null,"14. BCOES Cost Estimate Fee:",null,null,null,null,null,null,null,null,null,null,null,null,null,null,null,null,null,null,null,null,null,null,null,null,null,null,null,null,null,null,null,null,null,null,null,null,null,null,null,null,null,null,null,null,null,null,null,null,null,null,null,null,null,null,null,null,null,null,null,null,0.35,"Electrical",0,100,{"$f":"AND($AB$14=BK51,$C$56=BL51,$AP$7>=BM51,$AP$7<=BN51)","v":false},2,0.65,"Electrical",0,100,{"$f":"AND($AB$14=BQ51,$C$56=BR51,$AP$7>=BS51,$AP$7<=BT51)","v":false},2,0.95,"Electrical",0,100,{"$f":"AND($AB$14=BW51,$C$56=BX51,$AP$7>=BY51,$AP$7<=BZ51)","v":false},16,"Resubmit","Electrical",0,100,{"$f":"AND($AB$14=CC51,$C$56=CD51,$AP$7>=CE51,$AP$7<=CF51)","v":false},6,"100% Final","Electrical",0,100,{"$f":"AND($AB$14=CI51,$C$56=CJ51,$AP$7>=CK51,$AP$7<=CL51)","v":true},2]
[null,null,null,null,null,null,null,null,null,null,null,null,null,null,null,null,null,null,null,null,null,null,null,null,null,null,null,null,null,null,null,null,null,null,null,null,null,null,null,null,null,null,null,null,null,null,null,null,null,null,null,null,null,null,null,null,null,null,null,null,null,null,0.35,"Electrical",101,200,false,2,0.65,"Electrical",101,200,false,3,0.95,"Electrical",101,200,false,18,"Resubmit","Electrical",101,200,false,8,"100% Final","Electrical",101,200,false,2]
[null,null,"Discipline",null,null,null,null,"Reviewer",null,null,null,null,null,null,null,"Office",null,null,null,"Org Code",null,null,null,null,null,"Phone",null,null,null,null,null,"Hours",null,null,"Estimated Cost",null,null,null,null,null,"Negotiated Costs",null,null,null,null,null,null,null,null,null,null,null,null,null,null,null,null,null,null,null,null,null,0.35,"Electrical",201,300,false,2,0.65,"Electrical",201,300,false,4,0.95,"Electrical",201,300,false,20,"Resubmit","Electrical",201,300,false,10,"100% Final","Electrical",201,300,false,2]
[null,null,"Field Office",null,null,null,null,"Troy Funk",null,null,null,null,null,null,null,{"$f":"IF(C54=\"Field Office\",(VLOOKUP(H54,'Team Info'!A3:F13,3,FALSE)),\" \")","v":{"$error":"#N/A"}},null,null,null,{"$f":"IF($C$54=\"Field Office\",VLOOKUP($H$54,'Team Info'!A3:F13,2,FALSE),\" \")","v":{"$error":"#N/A"}},null,null,null,null,null,{"$f":"IF($C$54=\"Field Office\",VLOOKUP($H$54,'Team Info'!A3:F13,2,FALSE),\" \")","v":{"$error":"#N/A"}},null,null,null,null,null,{"$f":"IF(AND($AB$14=$BQ$38,$C$54=$BF$39,$AF$7<10000001),$BV$39,IF(AND($AB$14=$BQ$38,$C$54=$BF$39,$AF$7>=10000001,$AF$7<=20000000)=TRUE,$BV$47,IF(AND($AB$14=$BQ$38,$C$54=$BF$39,$AF$7>=20000001,$AF$7<3000000)=TRUE,BV55)))","v":false},null,null,null,null,null,null,null,null,null,null,null,null,null,null,null,null,null,null,null,null,null,null,null,null,null,null,null,null,null,null,0.35,"Electrical",301,400,false,2,0.65,"Electrical",301,400,false,5,0.95,"Electrical",301,400,false,24,"Resubmit","Electrical",301,400,false,12,"100% Final","Electrical",301,400,false,2]
[null,null,{"$f":"IF(BE120=TRUE,\"Mechanical\",\" \")","v":"Mechanical"},null,null,null,null,"Matt Kilmer",null,null,null,null,null,null,null,{"$f":"IF(C55=\"Mechanical\",(VLOOKUP(H55,'Team Info'!Y3:AD8,3,FALSE)),\" \")","v":"K6M1WA0"},null,null,null,{"$f":"IF($C$55=\"Mechanical\",VLOOKUP($H$55,'Team Info'!$Y$4:$AD$8,2,FALSE),\" \")","v":"Matthew.J.Kilmer@usace.army.mil"},null,null,null,null,null,{"$f":"IF($C$55=\"Mechanical\",VLOOKUP($H$55,'Team Info'!$Y$4:$AD$8,4,FALSE),\" \")","v":"CD-QA"},null,null,null,null,null,{"$f":"IF(BK40=TRUE,BP40,(IF(BQ40=TRUE,BV40,(IF(BW40=TRUE,CB40,(IF(CC40=TRUE,CH40,(IF(CI40=TRUE,CN40,\"x\")))))))))","v":"x"},null,null,null,null,null,null,null,null,null,null,null,null,null,null,null,null,null,null,null,null,null,null,null,null,null,null,null,null,null,null,0.35,"Electrical",401,500,false,2,0.65,"Electrical",401,500,false,6,0.95,"Electrical",401,500,false,36,"Resubmit","Electrical",401,500,false,14,"100% Final","Electrical",401,500,false,2]
[null,null,{"$f":"IF(BE121=TRUE,\"Electrical\",\" \")","v":"Electrical"},null,null,null,null,"Andy Cox",null,null,null,null,null,null,null,{"$f":"IF($C$56=\"Electrical\",VLOOKUP(H56,'Team Info'!S4:X8,3,FALSE),\" \")","v":"K6M1WA0"},null,null,null,{"$f":"IF($C$56=\"Electrical\",VLOOKUP($H$56,'Team Info'!$S$4:$X$8,2,FALSE),\" \")","v":"Andrew.J.Cox@USACE.army.mil"},null,null,null,null,null,{"$f":"IF($C$56=\"Electrical\",VLOOKUP($H$56,'Team Info'!$S$4:$X$8,4,FALSE),\" \")","v":"CD-QA"},null,null,null,null,null,{"$f":"IF(BK41=TRUE,BP41,(IF(BQ41=TRUE,BV41,(IF(BW41=TRUE,CB41,(IF(CC41=TRUE,CH41,(IF(CI41=TRUE,CN41,\"x\")))))))))","v":"x"},null,null,null,null,null,null,null,null,null,null,null,null,null,null,null,null,null,null,null,null,null,null,null,null,null,null,null,null,null,null,0.35,"Electrical",501,1000,false,2,0.65,"Electrical",501,1000,false,7,0.95,"Electrical",501,1000,false,40,"Resubmit","Electrical",501,1000,false,16,"100% Final","Electrical",501,1000,false,2]
[null,null,{"$f":"IF(BE122=TRUE,\"Civil\",\" \")","v":"Civil"},null,null,null,null,"Rich Sillin",null,null,null,null,null,null,null,{"$f":"IF($C$57=\"Civil\",VLOOKUP(H57,'Team Info'!M4:R8,3,FALSE),\" \")","v":{"$error":"#N/A"}},null,null,null,{"$f":"IF($C$57=\"Civil\",VLOOKUP($H$57,'Team Info'!$M$4:R8,2,FALSE),\" \")","v":{"$error":"#N/A"}},null,null,null,null,null,{"$f":"IF($C$57=\"Civil\",VLOOKUP($H$57,'Team Info'!$M$4:X8,4,FALSE),\" \")","v":{"$error":"#N/A"}},null,null,null,null,null,{"$f":"IF(BK42=TRUE,BP42,(IF(BQ42=TRUE,BV42,(IF(BW42=TRUE,CB42,(IF(CC42=TRUE,CH42,(IF(CI42=TRUE,CN42,\"x\")))))))))","v":"x"},null,null,null,null,null,null,null,null,null,null,null,null,null,null,null,null,null,null,null,null,null,null,null,null,null,null,null,null,null,null,0.35,"Civil",0,100,{"$f":"AND($AB$14=BK57,$C$57=BL57,$AP$7>=BM57,$AP$7<=BN57)","v":false},2,0.65,"Civil",0,100,{"$f":"AND($AB$14=BQ57,$C$57=BR57,$AP$7>=BS57,$AP$7<=BT57)","v":false},2,0.95,"Civil",0,100,{"$f":"AND($AB$14=BW57,$C$57=BX57,$AP$7>=BY57,$AP$7<=BZ57)","v":false},16,"Resubmit","Civil",0,100,{"$f":"AND($AB$14=CC57,$C$57=CD57,$AP$7>=CE57,$AP$7<=CF57)","v":false},6,"100% Final","Civil",0,100,{"$f":"AND($AB$14=CI57,$C$57=CJ57,$AP$7>=CK57,$AP$7<=CL57)","v":true},2]
[null,null,{"$f":"IF(BE123=TRUE,\"Architect\",\" \")","v":"Architect"},null,null,null,null,"Terry Dismukes",null,null,null,null,null,null,null,{"$f":"IF($C$58=\"Architect\",VLOOKUP(H58,'Team Info'!H4:L8,3,FALSE),\" \")","v":"EN-DAS"},null,null,null,{"$f":"IF($C$58=\"Architect\",VLOOKUP($H$58,'Team Info'!$H$4:$L$8,2,FALSE),\" \")","v":"K6L0BN0"},null,null,null,null,null,{"$f":"IF($C$58=\"Architect\",VLOOKUP($H$58,'Team Info'!$H$4:$L$8,4,FALSE),\" \")","v":"912-652-5544"},null,null,null,null,null,{"$f":"IF(BK43=TRUE,BP43,(IF(BQ43=TRUE,BV43,(IF(BW43=TRUE,CB43,(IF(CC43=TRUE,CH43,(IF(CI43=TRUE,CN43,\"x\")))))))))","v":"x"},null,null,null,null,null,null,null,null,null,null,null,null,null,null,null,null,null,null,null,null,null,null,null,null,null,null,null,null,null,null,0.35,"Civil",101,200,false,2,0.65,"Civil",101,200,false,3,0.95,"Civil",101,200,false,18,"Resubmit","Civil",101,200,false,8,"100% Final","Civil",101,200,false,2]
[null,null,{"$f":"IF(BE124=TRUE,\"Structural\",\" \")","v":"Structural"},null,null,null,null,null,null,null,null,null,null,null,null,{"$f":"IF($C$59=\"Structural\",VLOOKUP(H59,'Team Info'!Y7:AD12,3,FALSE),\" \")","v":{"$error":"#N/A"}},null,null,null,{"$f":"IF($C$59=\"Structural\",VLOOKUP(H59,'Team Info'!Y8:AD12,2,FALSE),\" \")","v":{"$error":"#N/A"}},null,null,null,null,null,{"$f":"IF($C$59=\"Structural\",VLOOKUP(O59,'Team Info'!AI8:AK12,4,FALSE),\" \")","v":{"$error":"#N/A"}},null,null,null,null,null,{"$f":"IF(BK44=TRUE,BP44,(IF(BQ44=TRUE,BV44,(IF(BW44=TRUE,CB44,(IF(CC44=TRUE,CH44,(IF(CI44=TRUE,CN44,\"x\")))))))))","v":"x"},null,null,null,null,null,null,null,null,null,null,null,null,null,null,null,null,null,null,null,null,null,null,null,null,null,null,null,null,null,null,0.35,"Civil",201,300,false,2,0.65,"Civil",201,300,false,4,0.95,"Civil",201,300,false,20,"Resubmit","Civil",201,300,false,10,"100% Final","Civil",201,300,false,2]
[null,null,"Coordination",null,null,null,null,"Rich Sillin",null,null,null,null,null,null,null,"CD-QA",null,null,null,"K6M1WA0",null,null,null,null,null,"912-652-5094",null,null,null,null,null,2,null,null,null,null,null,null,null,null,null,null,null,null,null,null,null,null,null,null,null,null,null,null,null,null,null,null,null,null,null,null,0.35,"Civil",301,400,false,2,0.65,"Civil",301,400,false,5,0.95,"Civil",301,400,false,24,"Resubmit","Civil",301,400,false,12,"100% Final","Civil",301,400,false,2]
[null,null,null,null,null,null,null,null,null,null,null,null,null,null,null,null,null,null,null,null,null,null,null,null,null,null,null,null,null,null,"Subtotals:",{"$f":"SUM(AF54:AG60)","v":2},null,null,{"$f":"SUM(AI55:AM60)","v":0},null,null,null,null,null,{"$f":"SUM(AO55:AS60)","v":0},null,null,null,null,null,null,null,null,null,null,null,null,null,null,null,null,null,null,null,null,null,0.35,"Civil",401,500,false,2,0.65,"Civil",401,500,false,6,0.95,"Civil",401,500,false,36,"Resubmit","Civil",401,500,false,14,"100% Final","Civil",401,500,false,2]
[null,null,null,null,null,null,null,null,null,null,null,null,null,null,null,null,null,null,null,null,null,null,null,null,null,null,null,null,null,null,null,null,null,null,null,null,null,null,null,null,null,null,null,null,null,null,null,null,null,null,null,null,null,null,null,null,null,null,null,null,null,null,0.35,"Civil",501,1000,false,2,0.65,"Civil",501,1000,false,7,0.95,"Civil",501,1000,false,40,"Resubmit","Civil",501,1000,false,16,"100% Final","Civil",501,1000,false,2]
[null,null,null,null,null,null,null,null,null,null,null,null,null,null,null,null,null,null,null,null,null,null,null,null,null,null,null,null,null,null,null,null,null,null,null,null,null,null,null,null,null,null,null,null,null,null,null,null,null,null,null,null,null,null,null,null,null,null,null,null,null,null,0.35,"Architect",0,100,{"$f":"AND($AB$14=BK63,$C$58=BL63,$AP$7>=BM63,$AP$7<=BN63)","v":false},2,0.65,"Architect",0,100,{"$f":"AND($AB$14=BQ63,$C$58=BR63,$AP$7>=BS63,$AP$7<=BT63)","v":false},2,0.95,"Architect",0,100,{"$f":"AND($AB$14=BW63,$C$58=BX63,$AP$7>=BY63,$AP$7<=BZ63)","v":false},16,"Resubmit","Architect",0,100,{"$f":"AND($AB$14=CC63,$C$58=CD63,$AP$7>=CE63,$AP$7<=CF63)","v":false},6,"100% Final","Architect",0,100,{"$f":"AND($AB$14=CI63,$C$58=CJ63,$AP$7>=CK63,$AP$7<=CL63)","v":true},2]
[null,null,null,null,null,null,null,null,null,null,null,null,null,null,null,null,null,null,null,null,null,null,null,null,null,null,null,null,null,null,null,null,null,null,null,null,null,null,null,null,null,null,null,null,null,null,null,null,null,null,null,null,null,null,null,null,null,null,null,null,null,null,0.35,"Architect",101,200,false,2,0.65,"Architect",101,200,false,3,0.95,"Architect",101,200,false,18,"Resubmit","Architect",101,200,false,8,"100% Final","Architect",101,200,false,2]
[null,null,null,null,null,null,null,null,null,null,null,null,null,null,null,null,null,null,null,null,null,null,null,null,null,null,null,null,null,null,null,null,null,null,null,null,null,null,null,null,null,null,null,null,null,null,null,null,null,null,null,null,null,null,null,null,null,null,null,null,null,null,0.35,"Architect",201,300,false,2,0.65,"Architect",201,300,false,4,0.95,"Architect",201,300,false,20,"Resubmit","Architect",201,300,false,10,"100% Final","Architect",201,300,false,2]
[null,null,null,null,null,null,null,null,null,null,null,null,null,null,null,null,null,null,null,null,null,null,null,null,null,null,null,null,null,null,null,null,null,null,null,null,null,null,null,null,null,null,null,null,null,null,null,null,null,null,null,null,null,null,null,null,null,null,null,null,null,null,0.35,"Architect",301,400,false,2,0.65,"Architect",301,400,false,5,0.95,"Architect",301,400,false,24,"Resubmit","Architect",301,400,false,12,"100% Final","Architect",301,400,false,2]
[null,null,null,null,null,null,null,null,null,null,null,null,null,null,null,null,null,null,null,null,null,null,null,null,null,null,null,null,null,null,null,null,null,null,null,null,null,null,null,null,null,null,null,null,null,null,null,null,null,null,null,null,null,null,null,null,null,null,null,null,null,null,0.35,"Architect",401,500,false,2,0.65,"Architect",401,500,false,6,0.95,"Architect",401,500,false,36,"Resubmit","Architect",401,500,false,14,"100% Final","Architect",401,500,false,2]
[null,null,null,null,null,null,null,null,null,null,null,null,null,null,null,null,null,null,null,null,null,null,null,null,null,null,null,null,null,null,null,null,null,null,null,null,null,null,null,null,null,null,null,null,null,null,null,null,null,null,null,null,null,null,null,null,null,null,null,null,null,null,0.35,"Architect",501,1000,false,2,0.65,"Architect",501,1000,false,7,0.95,"Architect",501,1000,false,40,"Resubmit","Architect",501,1000,false,16,"100% Final","Architect",501,1000,false,2]
[null,null,null,null,null,null,null,null,null,null,null,null,null,null,null,null,null,null,null,null,null,null,null,null,null,null,null,null,null,null,null,null,null,null,null,null,null,null,null,null,null,null,null,null,null,null,null,null,null,null,null,null,null,null,null,null,null,null,null,null,null,null,0.35,"Structural",0,100,{"$f":"AND($AB$14=BK69,$C$59=BL69,$AP$7>=BM69,$AP$7<=BN69)","v":false},2,0.65,"Structural",0,100,{"$f":"AND($AB$14=BQ69,$C$59=BR69,$AP$7>=BS69,$AP$7<=BT69)","v":false},2,0.95,"Structural",0,100,{"$f":"AND($AB$14=BW69,$C$59=BX69,$AP$7>=BY69,$AP$7<=BZ69)","v":false},16,"Resubmit","Structural",0,100,{"$f":"AND($AB$14=CC69,$C$59=CD69,$AP$7>=CE69,$AP$7<=CF69)","v":false},6,"100% Final","Structural",0,100,{"$f":"AND($AB$14=CI69,$C$59=CJ69,$AP$7>=CK69,$AP$7<=CL69)","v":true},2]
[null,null,null,null,null,null,null,null,null,null,null,null,null,null,null,null,null,null,null,null,null,null,null,null,null,null,null,null,null,null,null,null,null,null,null,null,null,null,null,null,null,null,null,null,null,null,null,null,null,null,null,null,null,null,null,null,null,null,null,null,null,null,0.35,"Structural",101,200,false,2,0.65,"Structural",101,200,false,3,0.95,"Structural",101,200,false,18,"Resubmit","Structural",101,200,false,8,"100% Final","Structural",101,200,false,2]
[null,null,null,null,null,null,null,null,null,null,null,null,null,null,null,null,null,null,null,null,null,null,null,null,null,null,null,null,null,null,null,null,null,null,null,null,null,null,null,null,null,null,null,null,null,null,null,null,null,null,null,null,null,null,null,null,null,null,null,null,null,null,0.35,"Structural",201,300,false,2,0.65,"Structural",201,300,false,4,0.95,"Structural",201,300,false,20,"Resubmit","Structural",201,300,false,10,"100% Final","Structural",201,300,false,2]
[null,null,null,null,null,null,null,null,null,null,null,null,null,null,null,null,null,null,null,null,null,null,null,null,null,null,null,null,null,null,null,null,null,null,null,null,null,null,null,null,null,null,null,null,null,null,null,null,null,null,null,null,null,null,null,null,null,null,null,null,null,null,0.35,"Structural",301,400,false,2,0.65,"Structural",301,400,false,5,0.95,"Structural",301,400,false,24,"Resubmit","Structural",301,400,false,12,"100% Final","Structural",301,400,false,2]
[null,null,null,null,null,null,null,null,null,null,null,null,null,null,null,null,null,null,null,null,null,null,null,null,null,null,null,null,null,null,null,null,null,null,null,null,null,null,null,null,null,null,null,null,null,null,null,null,null,null,null,null,null,null,null,null,null,null,null,null,null,null,0.35,"Structural",401,500,false,2,0.65,"Structural",401,500,false,6,0.95,"Structural",401,500,false,36,"Resubmit","Structural",401,500,false,14,"100% Final","Structural",401,500,false,2]
[null,null,null,null,null,null,null,null,null,null,null,null,null,null,null,null,null,null,null,null,null,null,null,null,null,null,null,null,null,null,null,null,null,null,null,null,null,null,null,null,null,null,null,null,null,null,null,null,null,null,null,null,null,null,null,null,null,null,null,null,null,null,0.35,"Structural",501,1000,false,2,0.65,"Structural",501,1000,false,7,0.95,"Structural",501,1000,false,40,"Resubmit","Structural",501,1000,false,16,"100% Final","Structural",501,1000,false,2]
[]
[]
[]
[]
[]
[]
[]
[]
[]
[]
[]
[]
[]
[]
[]
[]
[]
[]
[]
[]
[]
[]
[]
[]
[]
[]
[]
[]
[]
[]
[]
[]
[]
[]
[]
[]
[]
[]
[]
[]
[]
[]
[]
[]
[]
[null,null,null,null,null,null,null,null,null,null,null,null,null,null,null,null,null,null,null,null,null,null,null,null,null,null,null,null,null,null,null,null,null,null,null,null,null,null,null,null,null,null,null,null,null,null,null,null,null,null,null,null,null,null,null,null,true,"Mechanical",null,null,null,null,null,null,null,null,null,null,null,null,null,null,null,null,"Review Level",null,null,null,null,"Field Office","Mechanical",null,null,null,null,"Electrical","Civil",null,null,null,null,"Architect"]
[null,null,null,null,null,null,null,null,null,null,null,null,null,null,null,null,null,null,null,null,null,null,null,null,null,null,null,null,null,null,null,null,null,null,null,null,null,null,null,null,null,null,null,null,null,null,null,null,null,null,null,null,null,null,null,null,true,"Electrical",null,null,null,null,null,null,null,null,null,null,null,null,null,null,null,null,0.35,null,null,null,null,2]
[null,null,null,null,null,null,null,null,null,null,null,null,null,null,null,null,null,null,null,null,null,null,null,null,null,null,null,null,null,null,null,null,null,null,null,null,null,null,null,null,null,null,null,null,null,null,null,null,null,null,null,null,null,null,null,null,true,"Civil",null,null,null,null,null,null,null,null,null,null,null,null,null,null,null,null,0.65,null,null,null,null,4,1,null,null,null,null,1,1,null,null,null,null,1]
[null,null,null,null,null,null,null,null,null,null,null,null,null,null,null,null,null,null,null,null,null,null,null,null,null,null,null,null,null,null,null,null,null,null,null,null,null,null,null,null,null,null,null,null,null,null,null,null,null,null,null,null,null,null,null,null,true,"Architect",null,null,null,null,null,null,null,null,null,null,null,null,null,null,null,null,0.95,null,null,null,null,24]
[null,null,null,null,null,null,null,null,null,null,null,null,null,null,null,null,null,null,null,null,null,null,null,null,null,null,null,null,null,null,null,null,null,null,null,null,null,null,null,null,null,null,null,null,null,null,null,null,null,null,null,null,null,null,null,null,true,"Structural ",null,null,null,null,null,null,null,null,null,null,null,null,null,null,null,null,"Resubmit"]
[null,null,null,null,null,null,null,null,null,null,null,null,null,null,null,null,null,null,null,null,null,null,null,null,null,null,null,null,null,null,null,null,null,null,null,null,null,null,null,null,null,null,null,null,null,null,null,null,null,null,null,null,null,null,null,null,true,"Other",null,null,null,null,"Plan Dist",null,null,null,null,null,null,null,null,null,null,null,"100% Final"]
[null,null,null,null,null,null,null,null,null,null,null,null,null,null,null,null,null,null,null,null,null,null,null,null,null,null,null,null,null,null,null,null,null,null,null,null,null,null,null,null,null,null,null,null,null,null,null,null,null,null,null,null,null,null,null,null,false,"RMRDEC",null,null,null,null,25]
[null,null,null,null,null,null,null,null,null,null,null,null,null,null,null,null,null,null,null,null,null,null,null,null,null,null,null,null,null,null,null,null,null,null,null,null,null,null,null,null,null,null,null,null,null,null,null,null,null,null,null,null,null,null,null,null,false,"ProNet"]
[null,null,null,null,null,null,null,null,null,null,null,null,null,null,null,null,null,null,null,null,null,null,null,null,null,null,null,null,null,null,null,null,null,null,null,null,null,null,null,null,null,null,null,null,null,null,null,null,null,null,null,null,null,null,null,null,false,"H: Drive"]
[null,null,null,null,null,null,null,null,null,null,null,null,null,null,null,null,null,null,null,null,null,null,null,null,null,null,null,null,null,null,null,null,null,null,null,null,null,null,null,null,null,null,null,null,null,null,null,null,null,null,null,null,null,null,null,null,false,"CD Disk",null,null,null,null,50]
[null,null,null,null,null,null,null,null,null,null,null,null,null,null,null,null,null,null,null,null,null,null,null,null,null,null,null,null,null,null,null,null,null,null,null,null,null,null,null,null,null,null,null,null,null,null,null,null,null,null,null,null,null,null,null,null,false,"Design-Build"]
[null,null,null,null,null,null,null,null,null,null,null,null,null,null,null,null,null,null,null,null,null,null,null,null,null,null,null,null,null,null,null,null,null,null,null,null,null,null,null,null,null,null,null,null,null,null,null,null,null,null,null,null,null,null,null,null,false,"Design-Bid-Build"]
[null,null,null,null,null,null,null,null,null,null,null,null,null,null,null,null,null,null,null,null,null,null,null,null,null,null,null,null,null,null,null,null,null,null,null,null,null,null,null,null,null,null,null,null,null,null,null,null,null,null,null,null,null,null,null,null,false,"Design-Bid-Build AE"]
[null,null,null,null,null,null,null,null,null,null,null,null,null,null,null,null,null,null,null,null,null,null,null,null,null,null,null,null,null,null,null,null,null,null,null,null,null,null,null,null,null,null,null,null,null,null,null,null,null,null,null,null,null,null,null,null,false,"RFP"]
[]
[null,null,null,null,null,null,null,null,null,null,null,null,null,null,null,null,null,null,null,null,null,null,null,null,null,null,null,null,null,null,null,null,null,null,null,null,null,null,null,null,null,null,null,null,null,null,null,null,null,null,null,null,null,null,null,null,false,"RFP COS"]
[]
[null,null,null,null,null,null,null,null,null,null,null,null,null,null,null,null,null,null,null,null,null,null,null,null,null,null,null,null,null,null,null,null,null,null,null,null,null,null,null,null,null,null,null,null,null,null,null,null,null,null,null,null,null,null,null,null,false,"RFP AE"]
[null,null,null,null,null,null,null,null,null,null,null,null,null,null,null,null,null,null,null,null,null,null,null,null,null,null,null,null,null,null,null,null,null,null,null,null,null,null,null,null,null,null,null,null,null,null,null,null,null,null,null,null,null,null,null,null,false,"Non-Awardable Package"]
[null,null,null,null,null,null,null,null,null,null,null,null,null,null,null,null,null,null,null,null,null,null,null,null,null,null,null,null,null,null,null,null,null,null,null,null,null,null,null,null,null,null,null,null,null,null,null,null,null,null,null,null,null,null,null,null,false,"Excessive Bidder RFI"]
[null,null,null,null,null,null,null,null,null,null,null,null,null,null,null,null,null,null,null,null,null,null,null,null,null,null,null,null,null,null,null,null,null,null,null,null,null,null,null,null,null,null,null,null,null,null,null,null,null,null,null,null,null,null,null,null,true,"Compressed Schedule"]
[]
[null,null,null,null,null,null,null,null,null,null,null,null,null,null,null,null,null,null,null,null,null,null,null,null,null,null,null,null,null,null,null,null,null,null,null,null,null,null,null,null,null,null,null,null,null,null,null,null,null,null,null,null,null,null,null,null,false,"Overtime Time Required"]
[null,null,null,null,null,null,null,null,null,null,null,null,null,null,null,null,null,null,null,null,null,null,null,null,null,null,null,null,null,null,null,null,null,null,null,null,null,null,null,null,null,null,null,null,null,null,null,null,null,null,null,null,null,null,null,null,false,"Conference Over 2 Hours"]

{"sheet":"Project EX Input","index":8,"n_rows":63,"n_cols":27,"rows_kept":63,"cut":false,"hidden":true,"merged":[[19,0,19,24],[53,0,53,24]]}
["PEER","Code","INST","ORG","PROJECTNAME","PN","Fund","YR","Lock-in","PM","CS/KO","PA","RTA","Adv","AWARDED","OBLDT","TIER","LEEDSPIRIT","PROJSTATUS","CMR","OPSTATUS","PM","CONSTR_PCT_COMPLETE","Projected Award","COMMENTS","DATAASOF","BCOES"]
["N","A","Stewart",null,"MP Station","81303","UMMCA","14","N/A","Hill","Wampler / Arnett",2000000,"6/6/2016 (A)","6/30/16 (A)",null,null,null,null,null,null,null,null,null,"2016-08-26","D-B-B NC MATOC (SB);  Code 6 authorization received by Directive dated 6 Nov 15.  RFP for A-E mod to incorporate scope reductions issued 3 Nov 15.  A-E Fee Proposal received 17 Nov 15.  Negotiations completed 7 Dec 15.  P&D Funds requested 10 Dec 15. Received funds by FAD dated 14 Dec 15.  Awarded A-E mod on 30 Dec 15. Revised floor plan incorporating charrette scope reductions provided for review on 20 Jan 16.  Revised final received 11 Mar 16.  Review conference held 13 Apr.  Corrected final received 2 May.   BCOES approved 6 Jun 16.  Requested Code A on 9 Jun.  Received Code A by Directive dated 15 Jun.  Site Visit held for 21 Jul. Proposals due 11 Aug at 1400 EST.",null,"BCOES approved 6 Jun 16"]
["N","A","Bragg",null,"Water Source Heat Pumps, Cooling Tower","87500","ECIP","15","2016-04-29","Comeaux","Wampler / Arnett",1850000,"2016-08-15","2016-08-22",null,null,null,null,null,null,null,null,null,"2016-09-30","DB Mech MATOC; RFP prep by SAM.  LATE START.   Code A received by Directive dated 20 Nov.  RFP issued 16 Dec.  Received significant RFIs from DPW on week of 11 Jan 16.  Conference call with Designer and DPW held 14 Jan 16.  Revision to RFP addressing late comments issued 21 Jan.  Proposals received 28  Jan.  Prices exceed IGE.  SAM updated IGE per changes incorporated into the RFP by last amendment.  Revised (SIR) received 26 Feb does not support ECIP award.  Conference call with Bragg DPW held 5 Apr.  DPW reviewing SIR calculation & considering energy upgrades for another building.  Conducted Info Gathering calls with Contractors week of 25 Apr 16.  Cost cutting recommendations provided to DPW on 13 May.  Conference call with DPW held 24 May. Follow-Up conference call held 7 Jun.  Received DPW approval of cost cutting recommendations and identification of Bldg 2-1105 as swing space by Ayala e-mail dated 15 Jun. Requested funds to revise RFP on 30 Jun. Rec'd P&D on 6 Jun. Site Visit scheduled for 26 Jul. Revised RFP due 1 Aug.  Need CG approval to schedule award in Sep.     "]
["Y","A","Stewart",null,"SOF Company Ops Facility","57442","SOF","15","2016-09-15","Hill","Oliver / Crow",7692000,"2/26/16 (A)","7/22/16 (A)",null,null,null,null,null,null,null,null,null,"2016-09-30","DB \"C\" Type (SB) 2-Step RFP.  SAS to procure funiture by Supply Contract upon completion of CID by Contractor. Requested Code A on 7 Jan.  Code A received by Directive dated 15 Jan 16. Received OC/CT comments on SSP 19 Jan 16.  Final RFP documents for Step 2 received on 26 Jan.  Revised SSP to CT on 29 Jan 16.  OC approved SSP on 22 Feb. Peer review slipped from 7 Mar to week of 21 Mar.  Step 1 advertised 24 Mar and proposals received 26 Apr.  Step 1 SSEB convened 2 May 16.  Evaluations by SSEB completed 13 May.  SSEB report to CT 24 May.  Quick Review by KO completed 31 May.  Revised SSEB to CT on 6 Jun.  SSEB Report returned to PM with minor comments on 14 Jun.  Revised SSEB Report to CT on 15 Jun.  OC comments received 23 Jun.  Revised report by PM to CT on 30 Jun. PDT \"Page-Turner\" held 11 Jul. \"Page-Turner\" held with OC on 15 Jul. Step 2 issued 22 Jul. PM provided revised Section 00100 to CT and CD for review on 25 Jul. Site Visit schedule for 8 Aug @ 1000. Proposals due 22 Aug @ 1400. SSEB scheduled for 24 - 26 Aug.    "]
["N","A","Stewart",null,"CIDC Field Operations Building","86787","UMMCA","15","N/A","Hill","North / Crow",2000000,"6/30/16 (A)","2016-07-26",null,null,null,null,null,null,null,null,null,"2016-09-21","D-B-B 8a Match;  Design by SAS.  Charrette held 24 Sep 15.  Customer approved charrette floor plan on 30 Oct 15.  Concept submittal issued for review on 10 Dec 15.  Review conference held 17 Dec 15.  Final submittal received 2 May. Review conf held 2 Jun.  User Request to revise roof design.  Corr. Final due 7 Jul. PDT meeting to discuss advance advertisement held 30 Jun. Conditional BCOES signed 30 Jun. Requested Code A 30 Jun. Corrected Final mailed 8 Jul for review. Brett Wiliford and Victoria Read will be assigned to negotiate from CD-STH.  Received Code A by Directive dated 14 Jul 16.",null,"Conditional BCOES signed 30 Jun"]
["N","A","Gordon",null,"Command and Control Facility","85811","MCA","16","N/A","Puhalla","Page/LTC Lee",90000000,"12/31/15 (A)","2/12/16 (A)",null,null,null,null,null,null,null,null,null,"2016-08-30","D-B-B \"C\" Type 2 Step Sealed Bid.  Design by A-E.  Final submittal received 5 Oct.  Review conference completed 3 thru 5 Nov at Gordon.  Final received 18 Dec.  Consolidation Memo approved by HQUSACE on 14 Jan 16.  Step 1 solicitation to PARC for review and approval on 19 Jan 16.  Conference call with PARC completed 11 Feb 16.  Step 1 issued on 12 Feb 16 and proposals received 14 Mar 16.  Advertised Step 2 on 17 May. Site Visit held for 1 Jun. Bids opened 22 Jul @1400. PM to request funds and award authorization upon validation of bids by CT.   ",null,"BCOES????"]
["N","A","Moody",null,"Replace Truck Fill Stand","DESC1710","DLA","16","2016-08-30","Grandison","Thompson/ Crow",10900000,"12/31/15 (A)","6/15/2016 (A)",null,null,null,null,null,null,null,null,null,"2016-08-30","D-B-B, \"C\" Type LPTA (UR); Design by NWO. Final submittal received 10 Aug 15.  Review conference postponed to 20 Oct 15 at Customer's request.  Corrected Final received 4 Dec 15. PM  received estimate and DRAFT 1354 on 8 Feb.  Code A requested 16 Feb.  Per latest discussions with DLA this project will remain in the FY-16 program.   Pre-Solicitation meeting with PDT held 7 Mar 16.  Advance notice issued 30 Mar.  Conf call with DLA to discuss LPTA process held 3 May at 1300.  SSP forwarded to OC on 12 May and approved 20 May.  Approved SSP forwarded to DLA on 20 May.  Code A received by Directive dated 27 May.  Solicitation W912HN-16-R-0015 issued 15 Jun, proposals due date of 26 Jul revised by amendment 004 to 9 Aug due to large number of RFI's. LPTA Eval scheduled for 2 Aug tenatively rescheduled 22 Aug @ 1300.",null,"BCOES Completed 10-Feb-2016"]
["N","A","Seymour Johnson",null,"Air Traffic Control Tower/Base Operations Complex","VKAG013004R5","MCAF","16","2016-08-30","Harrell","Thompson/ Crow",17100000,"2016-08-17","2016-08-12",null,null,null,null,null,null,null,null,null,"2016-09-30","D-B-B, \"C\" Type LPTA (UR); Design by A-E.  Received P&D funds to exercise option for 65% design submittal on 26 Oct 15.  CT awarded option on 2 Nov 15.  65% Kick-Off at Seymour on 17 - 18 Nov.  Base approval of revised concept floor plan received 7 Dec 15.  65% submittal received 5 Feb 16.  Review conference held 7 Mar.  AFCEC authority to exercise final design option received 11 Apr 16.  Final submittal received 27 Jun 16.  PDT meeting to discuss advance advertisement held 6 Jul. Requested authority to advertise and pre-positioning of funds by Harrell e-mail dated 6 Jul.  Authority to Advertise received by AFCEC memo dated 14 Jul. Review conf. held 19 Jul. Sources Sought responses received 19 Jul. Advance notice issued 22 Jul. Corrected Final due 11 Aug. SSP to CT for review 24 Jun.",null,"No longer in Dr. Checks.  Email Traffic to 20Jul2016.  Appears BCOES Complete."]
["N","A","Robins",null,"Airfield Fence & Gates","UHHZ110323W","UMMCAF","16","N/A","Harrell","Arnett",1900000,"2/29/16 (A)","4/28/16 (A)",null,null,null,null,null,null,null,null,null,"2016-08-31","D-B, SATOC (Komada);  Received P&D funds and DI on 29 Oct.  Scope of Work by CD-RO recevied 22 Feb 16.  PM requested Code A 22 Feb 16.  Code A received by AFCEC memo dated 26 Apr.  Proposal due date of 11 May postponed to 14 Jun, received 20 Jun.  CD-RO preparing POM. "]
["N","A","Rucker",null,"Replace Rucker ES/PS ","AM00048","DoDEA","16","2016-06-30","Lourdes","Oliver/ Crow",46787000,"10/8/2015 (A)","12/23/2015 (A)",null,null,null,null,null,null,null,null,null,"2016-12-30","D-B-B, SAM MATOC (UR);  Design by A-E. BCOES approved 8 Oct.  Requested authority to advertise 7 Oct. Received Code A by Directive dated 1 Dec 15.  Issued solicitation on 23 Dec 15.  Proposals received 7 Mar 16.  PM to coordinate transfer of KO authority to SAM after award of Task Order.  Proposals are over PA; fact finding session held on 15 Mar 2016 with contractors in an attempt to bring proposal within an awardable range. PDT to discuss cost reducing recommendations.  Contractor's cost cutting proposals received 25 Mar.  PDT call held 6 Apr.  Teleconf with DoDEA HQs held 26 Apr.  A-E preparing revision incorporating approved cost cutting measures.  Revision from A-E due 6 May.  Revision issued on 12 May.  Revised proposals received 8 Jun.  Additional Information Gathering calls with the Contractors held 15 Jun.  Congressional reprogramming required, award lukely Jan 2017.  ATR package to DoDEA HQs on 22 Jun. ATR memo for HQUSACE provided 15 Jul as requested. Requesting CG approval for FY17 award    ",null,"FY17 - Ft Rucker - No BCOES???  Who did the BCOES???"]
["N",6,"Bragg",null,"Replace Butner ES","AM00045","DoDEA","16","2016-08-30","Peralta","North/ Crow",32944000,"2016-08-30","2016-09-13",null,null,null,null,null,null,null,null,null,"2016-11-28","D-B-B, \"C\" Type LPTA (UR);  Design by A-E.  NAO awarded A-E mod to revise concept submittal on 20 Aug 15.  DoDEA approved revised concept in Sep 15.  65% submittal received on 7 Dec 15.  Review conference held 5 thru 7 Jan 16. Final submittal received 8 Mar 16.  Review conference to be held 23 thru 25 Mar.  Resubmittal of final design required, originally due 6 Jun 16, received 15 Jul.  Issued Advance Notice on 15 Jul. SSP in OC under review. Review conf. sch'd for 26 Jul slipped to 3 Aug. Corrected Final due 18 Aug. PDT does not recommend advance advertisement of Corrected Final documents. ",null,"BCOES Closed 22-Jul-2016."]
["Y","A","Jackson",null,"Replace Pierce Terrace ES","AM00035","DoDEA","16","2016-08-30","Peralta","Page/ Crow",26157000,"8/28/15 (A)","3/14/16 (A)",null,null,null,null,null,null,null,null,null,"2016-12-30","D-B, \"C\" Type (UR);  Design by A-E.  Step 1 solicitation issued 7 Oct 15.  Proposals received 10 Nov.  Step 1 SSEB held 1 thru 4 Dec.  Board report to CT on 11 Dec.  Revised report per CT and OC comments to CT 4 Jan 16.  Additional comments received and revised report furnished to CT on 21 Jan 16.  \"Page Turner\" Review of Phase I Board Report with CT, OC and PM completed 23 Feb 16. Revised SSEB signature page provided to CT on 26 Feb. Issued Step 2 on 14 Mar 16.  Proposals received 12 May.  Tech review held 31 May - 9 Jun.  SSEB held 13 - 17 Jun.  PM to complete SSEB report and forward to CT by 27 Jul. Congressional reprogramming required, award likely Dec 2016.  Provided ATR memo for HQUSACE 15 Jul 16. Requesting CG approval for FY17 award.     ",null,"BCOES Completed 12-Jun-2016"]
["N","A","Maxwell ",null,"Replace/Renovate Maxwell ES/MS","AM00110","DoDEA","16","2015-06-30","Lourdes","SAM",32968000,"10/8/15 (A)","12/15/15 (A)",null,null,null,null,null,null,null,null,null,"2016-12-30","D-B-B, SAM MATOC (UR);  Design by A-E. Requested authority to advertise on 15 Oct.  Received code A by Directive dated 1 Dec.  SAM issued solicitation on 15 Dec 15.  Second Site Visit requested by Contractors held 20 Jan 16.  Proposal received 1 Mar 16.  Awaiting abstract of proposals to request funds and Code A. Proposals are over PA; fact finding session held on 21 Mar 2016 with contractors in an attempt to bring proposal within an awardable range.  Contractor's cost cutting proposals received 1 Apr.  PDT discussed cost cutting recommendations 14 Apr and received approval to proceed with approved revisions on 4 May.  A-E revised documents for re-pricing received  20 May and submitted to DDESS for approval.  SAM issued revision for repricing 29 Jun, proposals received 22 Jul.  SAM will award task order.  Congressional reprogramming will be required.  PM prepared ATR memo to front office 25 Jul. CG approved FY-17 award. ",null,"FY16 Maxwell.  Who did the BCOES???"]
["N",6,"Gordon",null,"SCIF (Cyber CoE Battle Lab)","87627","UMMCA","16"," ","Kerkhoff","TBD",2550000,"2017-02-15","2017-02-28",null,null,null,null,null,null,null,null,null,"2017-05-09","D-B-B MATOC (SB):  Initial design authorization, Code 6, received by Directive dated 21 Jan 16.  Design by Mason & Hanger.  P&D funds received 18 Feb. RFP for design task order issued 25 May with proposals rec'd 9 Jun.  Negotiations sch'd for 11 Jul. A-E task order award sch'd for 27 Jul.",null,"Under Design"]
["N",6,"Benning",null,"Maneuver / Training Area Heavy Forces","87980","UMMCA","16"," ","Grandison","TBD",2850000,"2016-11-07","2016-11-18",null,null,null,null,null,null,null,null,null,"2017-02-28","D-B-B MATOC (SB):  Initial design authorization, Code 6, received by Directive dated 16 Mar 16.  EN unavailable to start design effort at this time.  PM proceeding with A-E contract action. P&D funds requested 25 Mar, received 4 Apr. AE SOW to EN on 15 Apr and issued on 12 May.  A-E Site Visit held 31 May.  Fee proposal received 3 Jun. Negotiations completed 18 Jul. PM requested design funds on 25 Jul.     ",null,"Under Design"]
["N",6,"Stewart",null,"Support / Maintenance Warehouse","88047","UMMCA","16"," ","Hill","TBD",3000000,"2017-03-15","2017-03-29",null,null,null,null,null,null,null,null,null,"2017-06-09","D-B-B MATOC (SB):  Design by SAS. Initial design authorization, Code 6, received by Directive dated 16 Mar 16.  PM coordinating acquisition strategy for design.  P&D funds received week of 28 Mar.  In-House design kick-off held 16 Jun. Floor plan submittal mailed out 8 Jul.  Customer approved layout during meeting held 15 Jul. 35% Concept Submittal mail out 30 Aug. ",null,"Under Design"]
["N",6,"Gordon",null,"Administrative Building, General Purpose","89734","UMMCA","16"," ","Cady","TBD",2300000,"2016-07-29","2016-08-01",null,null,null,null,null,null,null,null,null,"2016-09-15","D-B-B 8a Sole Source:  Design by SAS-CD. Initial design authorization received by Directive dated 8 Jul 16.  Nomination letter for Teya Services, LLC pending SBA approval. Design funds and Pre-Award funds received 12 Jul. Final due 20 Jul. ",null,"BCOES???"]
["N","A","Stewart",null,"VFD Drives in HVAC Systems","85960","ECIP","16","2016-07-30","Comeaux","Arnett",1600000,"12/31/15 (A)","5/12/16 (A)",null,null,null,null,null,null,null,null,null,"7/15/16 (A)","D-B Mech MATOC; RFP prep by SAS.  Lock-in award date is 30 Jul 16.  Awarded contract to Haire Plumbing & Mechanical Co., Inc. on 15 Jul 16 in amount of $1,598,735.  Awarded Base Bid only.",null,"No BCOES done."]
[]
["FY-16 MILCON ROLL-UP"]
[null,null,null,"Design in Progress","Design in Progress","OTHER FY-16 & Prior Under Design",null,null,null,null,null,{"$f":"L5+L8+L11+L14+L15+L16+L17","v":62744000},7,"Contract Actions"]
[null,null,null,"Advertised","Advertised","OTHER FY-16 & Prior Advertised",null,null,null,null," ",{"$f":"L2+L4+L7","v":20592000},3,"Contract Actions"]
[null,null,null,"Evaluating proposals","Evaluating proposals","OTHER FY-16 & Prior Proposals Rec'd & Eval in Prog",null,null,null,null,null,{"$f":"L3+L6+L9","v":93750000},3,"Contract Actions"]
[null,null,null,"Discussions in progress","Discussions in progress","OTHER FY-16 & Prior In Discussions",null,null,null,null,null,0,0,"Contract Actions"]
[null,null,null,"Funds and Code 9 req.","Funds and Code 9 req.","OTHER FY-16 & Prior Awaiting funds and Code 9 ",null,null,null,null,null,0,0,"Contract Actions"]
[null,null,null,"Award in Progress","Award in Progress","OTHER FY-16 & Prior Ready To Award",null,null,null,null,null,0,0,"Contract Actions"]
[null,null,null,"Reprogramming action required","Reprogramming action required","OTHER FY-16 & Prior Under Congressional  Reprog",null,null,null,null,null,{"$f":"L10+L12+L13","v":105912000},3,"Contract Actions"]
[null,null,null,"Awarded","Awarded","OTHER FY-16 & Prior Awarded",null,null,null,null,null,{"$f":"L18","v":1600000},1,"Contract Actions"]
[null,null,null,null,null,null,null,null,"TOTAL",null,null,{"$f":"SUM(L21:L28)","v":284598000},{"$f":"SUM(M21:M28)","v":17},"Contract Actions"]
[]
["N",null,"Benning",null,"Blg 2761 TBUP",null,"SRM",16,"NA","Reinhardt","Thompson/ Crow",22000000,"2016-08-04","2016-08-11",null,null,null,null,null,null,null,null,null,"2016-09-30","D-B MATOC (SAM MATOC)   IH SAS RFP. Project slipped to FY-17 and back to FY-16.  Received design funds for RFP development on 24 Feb. Kick-Off meeting at Benning held 12 Apr.  DRAFT submittal received 20 May.  Capacity in amount of $22M reserved under W91278-16-D-0031 per Achord e-mail dated 6 Jun.  Final received 24 Jun.  Corrected Final received 7 Jul. BCOES review underway. ",null,"BCOES Underway"]
["N",null,"Benning",null,"Blg 3105 TBUP",null,"SRM",16,"NA","Reinhardt","Thompson/ Crow",33000000,"2016-08-05","2016-08-10",null,null,null,null,null,null,null,null,null,"2016-09-16","D-B MATOC (SAM MATOC).  AE RFP. Project slipped to FY-17 and back to FY-16.  Received design funds for RFP development on 24 Feb.  A-E Option awarded 18 Mar. Kick-Off meeting scheduled for 9 May.  RFP kick-off 9 - 12 May at Benning.   Capacity in amount of $33M reserved under W91278-16-D-0031 per Achord e-mail dated 6 Jun.  Final RFP Submittal received 15 Jul. BCOES underway.  ",null,"BCOES Underway"]
["N",null,"Benning",null,"Ranger Barracks 2937, 2938, 2939",null,"SRM",16,"NA","Reinhardt",null,10500000,"2016-08-02","2016-08-05",null,null,null,null,null,null,null,null,null,"2016-09-06","D-B-B MATOC (BE MATOC). Advertised in FY14 then again by MICC with partial award in in FY15.  Design by AE complete - requires minor admin update for new advertisement.  P&D for A-E mod to update plans and specs received week of 11 Apr.  Pre-Award funds received for socilitation effort. SOW for AE mod to CT on 18 Apr.  A-E proposal received 15 May. Negotiations completed 7 Jun.  A-E mod awarded 3 Jun.  Kick-Off meeting held 27 - 28 Jun.  Final due 2 Aug. Will advertise the final documents. This FY16 action is to award remaining barracks.  Task Order limit is $10M.",null,"BCOES???"]
["N",null,"Benning",null,"Ranger Barracks 2936, 2940",null,"SRM",16,"NA","Reinhardt",null,7000000,"2016-08-02","2016-08-05",null,null,null,null,null,null,null,null,null,"2016-09-06","D-B-B MATOC (NC MATOC). Advertised in FY14 then again by MICC with partial award in in FY15. Design by AE complete - requires minor admin update for new advertisement.  P&D for A-E mod to update plans and specs received week of 11 Apr.  SOW for AE mod to CT on 18 Apr.  A-E proposal received 15 May. Negotiations completed 7 Jun.  A-E mod awarded 3 Jun.  Kick-Off meeting held 27 - 28 Jun.  Final due 2 Aug. Pre-Award funds received for socilitation effort. Will advertise the final documents. This FY16 action is to award remaining barracks.  Task Order limit is $5M.  ",null,"BCOES???"]
["N","NA","Gordon",null,"Winship Hall Repair, Bldg. 29718","86038","SRM","16","NA","Kerkhoff","Thompson / Crow",14300000,"2016-07-20","2016-07-27",null,null,null,null,null,null,null,null,null,"2016-09-15","D-B-B (SAM MATOC (SB)).  Design by A-E. Charrette held 15 - 17 Sep.  35% submittal received 11 Dec.  Review conf and VE Workshop held 12 - 14 Jan. VE Report #2 underway.  65% submittal received 26 Feb.  Review conf. held 16 Mar.  Final received 26 Apr.  Review conf. held 17 May.  Backcheck submittal received 3 Jun.  Capacity in amount of $14.3M reserved under W91278-16-D-0031 per Achord e-mail dated 6 Jun. Solicitation plans and specs due 11 Jul. BCOES review comments due 20 Jul. CT preparing the 2579 and In-Scope Determination. PM preparing bid schedule. ",null,"BCOES Complete 20-Jul-2016"]
["N","NA","Gordon",null,"Cyber CoE RLB Swing Space","ST-06141-6P","OPA/SRM","16","NA","Kerkhoff",null,6500000,"2016-07-26","2016-08-01",null,null,null,null,null,null,null,null,null,"2016-09-21","D-B 8a Match (Supply).  Salient Features package by SAS.  Review conference held 13-14 Jun. Base Bid will be 35K building with options up to 6 classrooms.  Furniture procurement not required, Customer will re-use existing furniture.  Final salient features package mailed out 8 Jul.  Review conference tentatively scheduled for 19 Jul. Review conference on hold until further notice.  OPA funding unlikely in FY16; Cyber CoE may cancel this project. Project placed on hold.  ",null,"No BCOES???"]
["N","NA","Bragg",null,"Repair TBUP Bldg. D-3026","FA-11601-3P","SRM","16","NA","Leyva-Colon","Thompson / Crow",5000000,"7/29/15 (A)","7/18/16 (A)","TBD","TBD","TBD","TBD","TBD","TBD","TBD","TBD","TBD","2016-09-16","D-B SAM MATOC. Pre-Award funds in amount of $38,759 received by MIPR dated 10 Feb. Deleted as Seed for Bragg MATOC and requested capacity on SAM MATOC due to concerns with completing Step 1 down select.  $5M in capacity reserved under W16278-16-D-0022 per Achord e-mail dated 6 Jun. Proposals due 15 Aug. SSEB tentatively scheduled for week of 15 Aug. ",null,"No BCOES???"]
["N","NA","Bragg",null,"Renovate Pope Fire Station","FA-11006-3P","SRM","16","NA","Leyva-Colon","Cook / Arnette",5000000,"6/30/16 (A)","2016-07-27","????","????","????","????","????","????","????","????","????","2016-09-20","D-B-B MATOC (NC MATOC). Pre-Award funds in amount of $38,759 received by MIPR dated 12 Jan. Designed by A-E (Zapata). PM coordinating advertisement schedule with CT.  Received guidance from DPW on 30 Jun to proceed without 1391.  CT investigating In-Scope Determination for required temporary facilities. PM coordinating BCOES certificate which required prior to Bid opening.   ",null,"BCOES???"]
["N","NA","Bragg",null,"Renovate Volar Barracks 4445,4350, 5784, 5117, & 5122","FA-11312-9P","SRM","16","NA","Leyva-Colon","Oliver / Arnette",25000000,"7/29/15 (A)","7/25/16 (A)","????","????","????","????","????","????","????","????","????","2016-09-19","D-B-B MATOC (SAM MATOC). Pre-Award funds in amount of $38,759 received by MIPR dated (date?). Designed by I-H. $25M in capacity reserved under W16278-16-D-0031 per Achord e-mail dated 6 Jun. Site Visit scheduled for 25 Jul. Proposals due 25 Aug. Base Bid with four (4) options",null,"BCOES???"]
["N","NA","Robins",null,"DLA Renovation of Vairous Buildings Phase II","???","SRM","16","NA","Comeaux","Thompson / Crow",5526722,"2016-07-20","2016-07-22","????","????","????","????","????","????","????","????","????","2016-08-30","D-B MATOC (SAM MATOC). Pre-Award funds in District.  RFP by SAS. $8M in capacity reserved under W16278-16-D-0013 per Achord e-mail dated 6 Jun.  Awaiting reciept of AF332 from Robins BCE, due week of 18 Jul. PM staffing BCOES certificate. PM coordinating advertisement schedule with CT. Construction funds received ($5,416,301.57) by MIPRs dated 21 Jun. ",null,"BCOES???"]
["N","NA","Gordon",null,"NCOA Bks HVAC Repair","PN 78045  (Bldg 24404)  PN 78043 (Bldg 24407)","SRM","17","NA","Cady","Oliver/ Crow",7000000,"2016-07-01","FY-17",null,null,null,null,null,null,null,null,null,"FY-17","D-B-B (Benning MATOC): Design by A-E.  Charrette held.   Concept design rec'd 12 Nov 15.  35% review conf. and VE presentation completed 14 Dec.  65% submittal delayed to incorporate VE proposals, received 4 Mar 16.  Review conference held 22 Mar.  Over-The Shoulder Review of Fan Coil design held 21 Apr.  Final design submittal received 12 May, review conf held 7 Jun.  Both Building will be procurred in FY-17. Pre-Award funding for MATOC solicitation requested 16 May.    ",null,"FY17"]
["N","NA","Gordon",null,"TBUP Bldg 25703","79855","SRM","16","NA","Kerkhoff","Thompson/ Crow",15000000,"FY-17","FY-17",null,null,null,null,null,null,null,null,null,"FY-17","D-B MATOC SWF:  In-House to update previous perpared RFP.  Anticipate 1 of 3 remaining bldgs ($13M/EA) to award in FY16.  Revised budget provided to Ft. Gordon on 22 Dec.  Awaiting funds from DPW.  Per DPW, may not receive P&D funding until Apr 2016.  PM formally requested P&D to prepare RFP on 19 Apr, expected by EOM.  Notified by DPW during 12 May LIR that this will be an FY-17 project.  PM coordinating acquisition tool for construction.",null,"FY17"]
["N","NA","Gordon",null,"Cyber COE RLB SCIF",null,"SRM / OPA","16","NA","Kerkhoff","Helms",{"$f":"10600000+730000+2400000","v":13730000},"12/29/15 (A)","12/29/15 (A)","TBD","TBD","TBD","TBD","TBD","TBD","TBD","TBD","TBD","3/4/16 (A)","D-B Service Contract (8a Match).  Awarded to Tribalmod1, JV on 4 Mar 16 in amount of $9,407,918.  Pre-Con and site walk held 7 Mar 16.  Ground Breaking tentatively scheduled for 13 Apr 16. Received funding for FF&E in amount of $930,922 plus S&A by MIPR dated 15 Mar 16.  Option exercised by mod dated 5 May 16."]
["N",null,"Benning",null,"Blg 3305 TBUP",null,"SRM",16,"NA","Reinhardt","Thompson/ Crow",32498000,"4/10/15 (A)","5/15/15 (A)",null,null,null,null,null,null,null,null,null,"5/26/16 (A)","D-B MATOC (SWF).  AE RFP. 100%.  Contractors holding prices until 5 Dec 15. Contractors extended pricing to 4 Apr 16.  Revision extending proposal expiration to 30 Sep and raising CCL issued 5 Apr.  Funds for award received 12 Apr.  Responses received on 19 Apr.  Awarded 26 May 16 to Whitesell-Green in amount of $32,498,000. GAO Protest by EDT under review.   "]
["N","NA","Bragg",null,"Replace GREEN Ramp, North (Phase II), FA-80003-3P","FA-80003-3P","SRM","16","NA","Leyva-Colon","Crow / Oliver",16026182,"2015-07-29","5/6/2016 (A)","TBD","TBD","TBD","TBD","TBD","TBD","TBD","TBD","TBD","6/30/16 (A)","D-B-B LPTA \"C\" Type.  Design by SAS.  Pre-Award funds in amount of $13,858 received by MIPR dated 26 Jan 16.  Pre-Award funds in amount of $46,920 received by MIPR dated 10 Feb.  PDT to finalize acquisition strategy.  SSP approved 28 Apr. Construction funds in SAS.  Advance Notice to Offerors issued 18 Mar. Site visit scheduled for 16 May. Proposals received 6 Jun.  Completed evaluation 14 Jun. Awarded to R.C. Construction on 30 Jun in amount of $16,026,182."]
[]
[]
[]
[]
[]
[]
[]
[]
["FY-16 LARGE SRM ROLL-UP"]
[null,null,null,"Design in Progress","Design in Progress","OTHER FY-16 & Prior Under Design",null,null,null,null,null,{"$f":"L31+L32+L33+L34+L35+L36+L37+L38+L40+L41+L42","v":130826722},11,"Contract Actions"]
[null,null,null,"Advertised","Advertised","OTHER FY-16 & Prior Advertised",null,null,null,null," ",{"$f":"L39","v":25000000},1,"Contract Actions"]
[null,null,null,"Evaluating proposals","Evaluating proposals","OTHER FY-16 & Prior Proposals Rec'd & Eval in Prog",null,null,null,null,null,0,0,"Contract Actions"]
[null,null,null,"Discussions in progress","Discussions in progress","OTHER FY-16 & Prior In Discussions",null,null,null,null,null,0,0,"Contract Actions"]
[null,null,null,"Funds and Code 9 req.","Funds and Code 9 req.","OTHER FY-16 & Prior Awaiting funds and Code 9 ",null,null,null,null,null,0,0,"Contract Actions"]
[null,null,null,"Award in Progress","Award in Progress","OTHER FY-16 & Prior Ready To Award",null,null,null,null,null,0,0,"Contract Actions"]
[null,null,null,"Reprogramming action required","Reprogramming action required","OTHER FY-16 & Prior Under Congressional  Reprog",null,null,null,null,null,0,0,"Contract Actions"]
[null,null,null,"Awarded","Awarded","OTHER FY-16 & Prior Awarded",null,null,null,null,null,{"$f":"L43+L44+L45","v":62254182},3,"Contract Actions"]
[null,null,null,null,"Awarded",null,null,null,"TOTAL",null,null,{"$f":"SUM(L55:L62)","v":218080904},{"$f":"SUM(M55:M62)","v":15},"Contract Actions"]

{"sheet":"Projects Typed","index":9,"n_rows":29,"n_cols":7,"rows_kept":29,"cut":false,"hidden":true,"merged":[]}
[]
[null,null,null,null,null,null,"Base"]
["BASE","PROJECT NAME","PN","PM","PA",null,"Fort Benning"]
["Benning","Blg 2761 TBUP",null,"Reinhardt",22000000,null,"Fort Bragg"]
["Benning","Blg 3105 TBUP",null,"Reinhardt",33000000,null,"Fort Gordon"]
["Benning","Blg 3305 TBUP",null,"Reinhardt",32498000,null,"Fort Stewart"]
["Benning","Maneuver / Training Area Heavy Forces",87980,"Grandison",2850000,null,"Robins AFB"]
["Benning","Ranger Barracks 2937, 2938, 2939",null,"Reinhardt",10500000,null,"Seymour Johnson AFB"]
["Bragg","Renovate Pope Fire Station","FA-11006-3P","Leyva-Colon",5000000,null,"Hunter AAF"]
["Bragg","Renovate Volar Barracks 4445,4350, 5784, 5117, & 5122","FA-11312-9P","Leyva-Colon",25000000,null,"Fort Gillem"]
["Bragg","Repair TBUP Bldg. D-3026","FA-11601-3P","Leyva-Colon",5000000,null,"Camp Merrill"]
["Bragg","Replace Butner ES","AM00045","Peralta",32944000]
["Bragg","Replace GREEN Ramp, North (Phase II)","FA-80003-3P","Leyva-Colon",16026182]
["Gordon","Administrative Building, General Purpose",89734,"Cady",2300000]
["Gordon","Command and Control Facility",85811,"Puhalla",90000000]
["Gordon","Cyber COE RLB SCIF",null,"Kerkhoff",13730000]
["Gordon","Cyber CoE RLB Swing Space","ST-06141-6P","Kerkhoff",6500000]
["Gordon","NCOA Bks HVAC Repair","PN 78045/PN 78043","Cady",7000000]
["Gordon","SCIF (Cyber CoE Battle Lab)",87627,"Kerkhoff",2550000]
["Gordon","TBUP Bldg 25703",79855,"Kerkhoff",15000000]
["Gordon","Winship Hall Repair, Bldg. 29718",86038,"Kerkhoff",14300000]
["Jackson","Replace Pierce Terrace ES","AM00035","Peralta",26157000]
["Robins","Airfield Fence & Gates","UHHZ110323W","Harrell",1900000]
["Robins","DLA Renovation of Vairous Buildings Phase II",null,"Comeaux",5526722]
["Seymour Johnson","Air Traffic Control Tower/Base Operations Complex","VKAG013004R5","Harrell",17100000]
["Stewart","CIDC Field Operations Building",86787,"Hill",2000000]
["Stewart","MP Station",81303,"Hill",2000000]
["Stewart","Support / Maintenance Warehouse",88047,"Hill",3000000]
["Stewart","VFD Drives in HVAC Systems",85960,"Comeaux",1600000]

{"sheet":"Project EX Input Sort","index":10,"n_rows":33,"n_cols":26,"rows_kept":33,"cut":false,"hidden":true,"merged":[]}
["PEER","Code","INST","ORG","PROJECTNAME","PN","Fund","YR","Lock-in","PM","CS/KO","PA","RTA","Adv","AWARDED","OBLDT","TIER","LEEDSPIRIT","PROJSTATUS","CMR","OPSTATUS","PM","CONSTR_PCT_COMPLETE","Projected Award","DATAASOF","BCOES"]
["N",6,"Benning",null,"Maneuver / Training Area Heavy Forces","87980","UMMCA","16"," ","Grandison","TBD",2850000,"2016-11-07","2016-11-18",null,null,null,null,null,null,null,null,null,"2017-02-28",null,"Under Design"]
["N",null,"Benning",null,"Blg 2761 TBUP",null,"SRM",16,"NA","Reinhardt","Thompson/ Crow",22000000,"2016-08-04","2016-08-11",null,null,null,null,null,null,null,null,null,"2016-09-30",null,"BCOES Underway"]
["N",null,"Benning",null,"Blg 3105 TBUP",null,"SRM",16,"NA","Reinhardt","Thompson/ Crow",33000000,"2016-08-05","2016-08-10",null,null,null,null,null,null,null,null,null,"2016-09-16",null,"BCOES Underway"]
["N",null,"Benning",null,"Ranger Barracks 2937, 2938, 2939",null,"SRM",16,"NA","Reinhardt",null,10500000,"2016-08-02","2016-08-05",null,null,null,null,null,null,null,null,null,"2016-09-06",null,"BCOES???"]
["N",null,"Benning",null,"Ranger Barracks 2936, 2940",null,"SRM",16,"NA","Reinhardt",null,7000000,"2016-08-02","2016-08-05",null,null,null,null,null,null,null,null,null,"2016-09-06",null,"BCOES???"]
["N",null,"Benning",null,"Blg 3305 TBUP",null,"SRM",16,"NA","Reinhardt","Thompson/ Crow",32498000,"4/10/15 (A)","5/15/15 (A)",null,null,null,null,null,null,null,null,null,"5/26/16 (A)"]
["N","A","Bragg",null,"Water Source Heat Pumps, Cooling Tower","87500","ECIP","15","2016-04-29","Comeaux","Wampler / Arnett",1850000,"2016-08-15","2016-08-22",null,null,null,null,null,null,null,null,null,"2016-09-30"]
["N",6,"Bragg",null,"Replace Butner ES","AM00045","DoDEA","16","2016-08-30","Peralta","North/ Crow",32944000,"2016-08-30","2016-09-13",null,null,null,null,null,null,null,null,null,"2016-11-28",null,"BCOES Closed 22-Jul-2016."]
["N","NA","Bragg",null,"Repair TBUP Bldg. D-3026","FA-11601-3P","SRM","16","NA","Leyva-Colon","Thompson / Crow",5000000,"7/29/15 (A)","7/18/16 (A)","TBD","TBD","TBD","TBD","TBD","TBD","TBD","TBD","TBD","2016-09-16",null,"No BCOES???"]
["N","NA","Bragg",null,"Renovate Pope Fire Station","FA-11006-3P","SRM","16","NA","Leyva-Colon","Cook / Arnette",5000000,"6/30/16 (A)","2016-07-27","????","????","????","????","????","????","????","????","????","2016-09-20",null,"BCOES???"]
["N","NA","Bragg",null,"Renovate Volar Barracks 4445,4350, 5784, 5117, & 5122","FA-11312-9P","SRM","16","NA","Leyva-Colon","Oliver / Arnette",25000000,"7/29/15 (A)","7/25/16 (A)","????","????","????","????","????","????","????","????","????","2016-09-19",null,"BCOES???"]
["N","NA","Bragg",null,"Replace GREEN Ramp, North (Phase II), FA-80003-3P","FA-80003-3P","SRM","16","NA","Leyva-Colon","Crow / Oliver",16026182,"2015-07-29","5/6/2016 (A)","TBD","TBD","TBD","TBD","TBD","TBD","TBD","TBD","TBD","6/30/16 (A)"]
["N","A","Gordon",null,"Command and Control Facility","85811","MCA","16","N/A","Puhalla","Page/LTC Lee",90000000,"12/31/15 (A)","2/12/16 (A)",null,null,null,null,null,null,null,null,null,"2016-08-30",null,"BCOES????"]
["N",6,"Gordon",null,"SCIF (Cyber CoE Battle Lab)","87627","UMMCA","16"," ","Kerkhoff","TBD",2550000,"2017-02-15","2017-02-28",null,null,null,null,null,null,null,null,null,"2017-05-09",null,"Under Design"]
["N",6,"Gordon",null,"Administrative Building, General Purpose","89734","UMMCA","16"," ","Cady","TBD",2300000,"2016-07-29","2016-08-01",null,null,null,null,null,null,null,null,null,"2016-09-15",null,"BCOES???"]
["N","NA","Gordon",null,"Winship Hall Repair, Bldg. 29718","86038","SRM","16","NA","Kerkhoff","Thompson / Crow",14300000,"2016-07-20","2016-07-27",null,null,null,null,null,null,null,null,null,"2016-09-15",null,"BCOES Complete 20-Jul-2016"]
["N","NA","Gordon",null,"Cyber CoE RLB Swing Space","ST-06141-6P","OPA/SRM","16","NA","Kerkhoff",null,6500000,"2016-07-26","2016-08-01",null,null,null,null,null,null,null,null,null,"2016-09-21",null,"No BCOES???"]
["N","NA","Gordon",null,"NCOA Bks HVAC Repair","PN 78045  (Bldg 24404)  PN 78043 (Bldg 24407)","SRM","17","NA","Cady","Oliver/ Crow",7000000,"2016-07-01","FY-17",null,null,null,null,null,null,null,null,null,"FY-17",null,"FY17"]
["N","NA","Gordon",null,"TBUP Bldg 25703","79855","SRM","16","NA","Kerkhoff","Thompson/ Crow",15000000,"FY-17","FY-17",null,null,null,null,null,null,null,null,null,"FY-17",null,"FY17"]
["N","NA","Gordon",null,"Cyber COE RLB SCIF",null,"SRM / OPA","16","NA","Kerkhoff","Helms",{"$f":"10600000+730000+2400000","v":13730000},"12/29/15 (A)","12/29/15 (A)","TBD","TBD","TBD","TBD","TBD","TBD","TBD","TBD","TBD","3/4/16 (A)"]
["Y","A","Jackson",null,"Replace Pierce Terrace ES","AM00035","DoDEA","16","2016-08-30","Peralta","Page/ Crow",26157000,"8/28/15 (A)","3/14/16 (A)",null,null,null,null,null,null,null,null,null,"2016-12-30",null,"BCOES Completed 12-Jun-2016"]
["N","A","Maxwell ",null,"Replace/Renovate Maxwell ES/MS","AM00110","DoDEA","16","2015-06-30","Lourdes","SAM",32968000,"10/8/15 (A)","12/15/15 (A)",null,null,null,null,null,null,null,null,null,"2016-12-30",null,"FY16 Maxwell.  Who did the BCOES???"]
["N","A","Moody",null,"Replace Truck Fill Stand","DESC1710","DLA","16","2016-08-30","Grandison","Thompson/ Crow",10900000,"12/31/15 (A)","6/15/2016 (A)",null,null,null,null,null,null,null,null,null,"2016-08-30",null,"BCOES Completed 10-Feb-2016"]
["N","A","Robins",null,"Airfield Fence & Gates","UHHZ110323W","UMMCAF","16","N/A","Harrell","Arnett",1900000,"2/29/16 (A)","4/28/16 (A)",null,null,null,null,null,null,null,null,null,"2016-08-31"]
["N","NA","Robins",null,"DLA Renovation of Vairous Buildings Phase II","???","SRM","16","NA","Comeaux","Thompson / Crow",5526722,"2016-07-20","2016-07-22","????","????","????","????","????","????","????","????","????","2016-08-30",null,"BCOES???"]
["N","A","Rucker",null,"Replace Rucker ES/PS ","AM00048","DoDEA","16","2016-06-30","Lourdes","Oliver/ Crow",46787000,"10/8/2015 (A)","12/23/2015 (A)",null,null,null,null,null,null,null,null,null,"2016-12-30",null,"FY17 - Ft Rucker - No BCOES???  Who did the BCOES???"]
["N","A","Seymour Johnson",null,"Air Traffic Control Tower/Base Operations Complex","VKAG013004R5","MCAF","16","2016-08-30","Harrell","Thompson/ Crow",17100000,"2016-08-17","2016-08-12",null,null,null,null,null,null,null,null,null,"2016-09-30",null,"No longer in Dr. Checks.  Email Traffic to 20Jul2016.  Appears BCOES Complete."]
["N","A","Stewart",null,"MP Station","81303","UMMCA","14","N/A","Hill","Wampler / Arnett",2000000,"6/6/2016 (A)","6/30/16 (A)",null,null,null,null,null,null,null,null,null,"2016-08-26",null,"BCOES approved 6 Jun 16"]
["Y","A","Stewart",null,"SOF Company Ops Facility","57442","SOF","15","2016-09-15","Hill","Oliver / Crow",7692000,"2/26/16 (A)","7/22/16 (A)",null,null,null,null,null,null,null,null,null,"2016-09-30"]
["N","A","Stewart",null,"CIDC Field Operations Building","86787","UMMCA","15","N/A","Hill","North / Crow",2000000,"6/30/16 (A)","2016-07-26",null,null,null,null,null,null,null,null,null,"2016-09-21",null,"Conditional BCOES signed 30 Jun"]
["N",6,"Stewart",null,"Support / Maintenance Warehouse","88047","UMMCA","16"," ","Hill","TBD",3000000,"2017-03-15","2017-03-29",null,null,null,null,null,null,null,null,null,"2017-06-09",null,"Under Design"]
["N","A","Stewart",null,"VFD Drives in HVAC Systems","85960","ECIP","16","2016-07-30","Comeaux","Arnett",1600000,"12/31/15 (A)","5/12/16 (A)",null,null,null,null,null,null,null,null,null,"7/15/16 (A)",null,"No BCOES done."]

{"sheet":"Spare","index":11,"n_rows":29,"n_cols":7,"rows_kept":29,"cut":false,"hidden":true,"merged":[]}
[]
[null,null,null,null,null,null,"Base"]
["BASE","PROJECT NAME","PN","PM","PA",null,"Fort Benning"]
["Stewart","MP Station",81303,"Hill",2000000,null,"Fort Bragg"]
["Stewart","CIDC Field Operations Building",86787,"Hill",2000000,null,"Fort Gordon"]
["Gordon","Command and Control Facility",85811,"Puhalla",90000000,null,"Fort Stewart"]
["Seymour Johnson","Air Traffic Control Tower/Base Operations Complex","VKAG013004R5","Harrell",17100000,null,"Robins AFB"]
["Robins","Airfield Fence & Gates","UHHZ110323W","Harrell",1900000,null,"Seymour Johnson AFB"]
["Bragg","Replace Butner ES","AM00045","Peralta",32944000,null,"Hunter AAF"]
["Jackson","Replace Pierce Terrace ES","AM00035","Peralta",26157000,null,"Fort Gillem"]
["Gordon","SCIF (Cyber CoE Battle Lab)",87627,"Kerkhoff",2550000,null,"Camp Merrill"]
["Benning","Maneuver / Training Area Heavy Forces",87980,"Grandison",2850000]
["Stewart","Support / Maintenance Warehouse",88047,"Hill",3000000]
["Gordon","Administrative Building, General Purpose",89734,"Cady",2300000]
["Stewart","VFD Drives in HVAC Systems",85960,"Comeaux",1600000]
["Benning","Blg 2761 TBUP",null,"Reinhardt",22000000]
["Benning","Blg 3105 TBUP",null,"Reinhardt",33000000]
["Benning","Ranger Barracks 2937, 2938, 2939",null,"Reinhardt",10500000]
["Gordon","Winship Hall Repair, Bldg. 29718",86038,"Kerkhoff",14300000]
["Gordon","Cyber CoE RLB Swing Space","ST-06141-6P","Kerkhoff",6500000]
["Bragg","Repair TBUP Bldg. D-3026","FA-11601-3P","Leyva-Colon",5000000]
["Bragg","Renovate Pope Fire Station","FA-11006-3P","Leyva-Colon",5000000]
["Bragg","Renovate Volar Barracks 4445,4350, 5784, 5117, & 5122","FA-11312-9P","Leyva-Colon",25000000]
["Robins","DLA Renovation of Vairous Buildings Phase II",null,"Comeaux",5526722]
["Gordon","NCOA Bks HVAC Repair","PN 78045/PN 78043","Cady",7000000]
["Gordon","TBUP Bldg 25703",79855,"Kerkhoff",15000000]
["Gordon","Cyber COE RLB SCIF",null,"Kerkhoff",13730000]
["Benning","Blg 3305 TBUP",null,"Reinhardt",32498000]
["Bragg","Replace GREEN Ramp, North (Phase II)","FA-80003-3P","Leyva-Colon",16026182]